Cogmind - Beta 9.3 @@@ ROGUE MODE // 2020.01.15 @ 02:31:29 // Winter2019/RPGLIKE Player: badjay Result: Escaped! Performance ------------- Evolutions (9) 4500 Regions Visited (41) 8200 Robots Destroyed (1022) 5110 Value Destroyed (53604) 53604 Prototype IDs (126) 2520 Alien Tech Used (1) 200 Bonus (52538) 52538 TOTAL SCORE: 126672 Bonus ------- Triggered High Security 7000 Triggered Max Security 2000 High Alert Combat Kills 30090 Follower Combat Kills 2071 Entered Garrisons 2400 Used RIF Installer 5000 Met Zhirov 300 Met MAIN.C 5000 Win 3000 Friendly Fire -4323 Cogmind --------- Core Integrity 629/1000 Matter 221/300 Energy 526/530 System Corruption 5% Temperature Cool (4) Movement Flying (17) Location To Epsilon Eridani Parts ------- > --- POWER (2) -------- F-cell Engine Mini Fusion Reactor > --- PROPULSION (2) --- Experimental Q-thruster Experimental Q-thruster > --- UTILITY (13) ----- Advanced Coolant Injector Experimental Targeting Computer Advanced Target Analyzer Advanced Core Analyzer Advanced Armor Integrity Analyzer Energy Filter Advanced Weapon Cycler Advanced Reaction Control System Advanced Phase Shifter Relay Coupler [Grunt] (29) Relay Coupler [Sentry] (65) Relay Coupler [Hunter] (42) Improved System Restoration Module > --- WEAPON (4) ------- Compact HERF Cannon Enhanced Nova Cannon Enhanced Nova Cannon Vibroblade > --- INVENTORY (6) ---- Improved Particle Accelerator Improved Stasis Canceller Advanced Transmission Jammer Cooled Proton Cannon Improved Remote Datajack Peak State ------------ > --- POWER ------------ F-cell Engine Mini Fusion Reactor > --- PROPULSION ------- Experimental Q-thruster Experimental Q-thruster > --- UTILITY ---------- Advanced Coolant Injector Experimental Targeting Computer Advanced Target Analyzer Advanced Core Analyzer Advanced Armor Integrity Analyzer Improved Particle Accelerator Improved Kinecellerator Advanced Weapon Cycler Advanced Reaction Control System Advanced Phase Shifter Relay Coupler [Grunt] Relay Coupler [Sentry] Relay Coupler [Hunter] > --- WEAPON ----------- Cooled Proton Cannon Compact HERF Cannon Enhanced Nova Cannon Enhanced Nova Cannon > --- INVENTORY -------- Improved Stasis Canceller Advanced Transmission Jammer Improved System Restoration Module Improved Remote Datajack Field Lobotomy Kit Vibroblade [Rating: 160] Favorites ----------- Power F-cell Engine Engine F-cell Engine Power Core Light Nuclear Core Reactor Mini Fusion Reactor Propulsion Cooled Cesium-ion Thruster Treads Light Treads Flight Unit Cooled Cesium-ion Thruster Utility Relay Coupler [Grunt] Device Coolant Injector Storage Small Battery Processor Improved Core Analyzer Hackware Relay Coupler [Grunt] Protection Improved Propulsion Shielding Weapon Force Rifle Energy Gun Force Rifle Energy Cannon Enhanced Nova Cannon Ballistic Gun Enhanced Autogun Ballistic Cannon Advanced Assault Cannon Launcher Micro-nuke Launcher Special Weapon Improved Remote Datajack Impact Weapon Impact Mace Slashing Weapon Vibroblade Build | -11 -10 -10 -10 -9 -8 -8 -8 -8 -7 -7 -7 -7 -7 -7 -6 -6 -6 -6 -6 -6 -5 -5 -5 -5 -4 -4 -4 -4 -4 -4 -4 -3 -3 -2 -2 -1 -1 -1 -1 -1 -1 ------- Run | Scr Mat Min Exi Min Mat Gar Mat Gar Fac Was Fac Gar Fac Gar Fac Was Fac Gar Fac Gar Fac Upp Upp Zhi Pro Fac Was Fac Gar Fac Gar Res Gar Res Gar Acc Gar Acc Gar Acc Com Slots Evolved 17 | . 1 . . . 5 . 4 1 1 . . 1 . . 1 . 1 . . . . . . . . . . 1 . . . . . 1 . . . . . . . Power 1 | . . . . . . . 1 . . . . . . . . . . . . . . . . . . . . . . . . . . . . . . . . . . Propulsion 1 | . . . . . 1 . . . . . . . . . . . . . . . . . . . . . . . . . . . . . . . . . . . . Utility 12 | . . . . . 3 . 2 1 1 . . 1 . . 1 . 1 . . . . . . . . . . 1 . . . . . 1 . . . . . . . Weapon 3 | . 1 . . . 1 . 1 . . . . . . . . . . . . . . . . . . . . . . . . . . . . . . . . . . Parts Attached 318 | . 9 . 2 . 15 10 15 1 17 1 25 1 12 6 22 14 4 1 4 10 7 . 1 5 2 13 2 20 3 7 3 14 3 14 7 24 1 . 4 12 7 Power 27 | . 2 . . . . . 1 . 2 1 3 . . . 7 . . . . . . . . 2 . 2 . . . 2 . 1 . 2 . 2 . . . . . Engine 10 | . 1 . . . . . 1 . . . 2 . . . 3 . . . . . . . . 1 . 1 . . . . . 1 . . . . . . . . . Core 6 | . 1 . . . . . . . 2 . 1 . . . 1 . . . . . . . . . . . . . . . . . . 1 . . . . . . . Reactor 11 | . . . . . . . . . . 1 . . . . 3 . . . . . . . . 1 . 1 . . . 2 . . . 1 . 2 . . . . . Propulsion 19 | . 1 . . . 2 2 3 . 2 . 2 . . . 2 . . . . . . . . . . . . . . . . . . . . 2 . . . 3 . Treads 1 | . . . . . . 1 . . . . . . . . . . . . . . . . . . . . . . . . . . . . . . . . . . . Leg . | . . . . . . . . . . . . . . . . . . . . . . . . . . . . . . . . . . . . . . . . . . Wheel . | . . . . . . . . . . . . . . . . . . . . . . . . . . . . . . . . . . . . . . . . . . Hover . | . . . . . . . . . . . . . . . . . . . . . . . . . . . . . . . . . . . . . . . . . . Flight 18 | . 1 . . . 2 1 3 . 2 . 2 . . . 2 . . . . . . . . . . . . . . . . . . . . 2 . . . 3 . Utility 148 | . 1 . 1 . 3 2 5 1 10 . 11 1 6 . 8 7 4 1 . 4 7 . . 3 . 11 2 17 1 4 . 4 3 8 3 11 1 . 2 2 4 Device 116 | . . . . . 1 1 3 . 7 . 6 . 5 . 6 5 2 . . 3 7 . . 3 . 11 2 15 1 4 . 3 3 6 3 11 1 . 1 2 4 Storage 1 | . . . . . . . . . 1 . . . . . . . . . . . . . . . . . . . . . . . . . . . . . . . . Processor 17 | . 1 . . . 1 . 2 . 1 . 4 . 1 . 2 . 2 . . . . . . . . . . 2 . . . 1 . . . . . . . . . Hackware 12 | . . . 1 . 1 1 . 1 1 . 1 1 . . . . . 1 . 1 . . . . . . . . . . . . . 2 . . . . 1 . . Protection 2 | . . . . . . . . . . . . . . . . 2 . . . . . . . . . . . . . . . . . . . . . . . . . Artifact . | . . . . . . . . . . . . . . . . . . . . . . . . . . . . . . . . . . . . . . . . . . Weapon 124 | . 5 . 1 . 10 6 6 . 3 . 9 . 6 6 5 7 . . 4 6 . . 1 . 2 . . 3 2 1 3 9 . 4 4 9 . . 2 7 3 Energy Gun 55 | . . . . . 1 2 5 . 3 . 7 . 4 3 4 5 . . 4 3 . . . . 2 . . 3 1 1 1 5 . . . 1 . . . . . Energy Cannon 27 | . 2 . . . . . . . . . . . 2 . 1 . . . . . . . 1 . . . . . . . . 4 . 3 2 6 . . 1 4 1 Ballistic Gun 15 | . 3 . . . 7 3 1 . . . 1 . . . . . . . . . . . . . . . . . . . . . . . . . . . . . . Ballistic Cannon 2 | . . . . . 2 . . . . . . . . . . . . . . . . . . . . . . . . . . . . . . . . . . . . Launcher 1 | . . . . . . . . . . . . . . . . 1 . . . . . . . . . . . . . . . . . . . . . . . . . Special Weapon 15 | . . . 1 . . 1 . . . . . . . . . . . . . 3 . . . . . . . . 1 . 2 . . 1 2 1 . . 1 1 1 Impact Weapon 3 | . . . . . . . . . . . . . . 3 . . . . . . . . . . . . . . . . . . . . . . . . . . . Slashing Weapon 6 | . . . . . . . . . . . 1 . . . . 1 . . . . . . . . . . . . . . . . . . . 1 . . . 2 1 Piercing Weapon . | . . . . . . . . . . . . . . . . . . . . . . . . . . . . . . . . . . . . . . . . . . Special Melee Weapon . | . . . . . . . . . . . . . . . . . . . . . . . . . . . . . . . . . . . . . . . . . . Unidentified Prototypes 38 | . . . . . 2 . 3 . 1 . 2 . 1 . 4 2 2 . . . . . . 3 . 2 . 2 . 1 . 4 . 2 . 6 . . . 1 . Parts Lost 4 | . . . . . . . . . . . . . . . . . . . . . . . . . . . . . . . . 2 1 . . 1 . . . . . Power . | . . . . . . . . . . . . . . . . . . . . . . . . . . . . . . . . . . . . . . . . . . Propulsion . | . . . . . . . . . . . . . . . . . . . . . . . . . . . . . . . . . . . . . . . . . . Utility 1 | . . . . . . . . . . . . . . . . . . . . . . . . . . . . . . . . . 1 . . . . . . . . Weapon 3 | . . . . . . . . . . . . . . . . . . . . . . . . . . . . . . . . 2 . . . 1 . . . . . Highest Loss Streak 1 | . . . . . . . . . . . . . . . . . . . . . . . . . . . . . . . . 1 1 . . 1 . . . . . Average Slot Usage (%) 98 | . 68 100 92 80 91 98 97 100 99 100 99 99 99 100 99 98 99 98 99 99 99 100 100 99 100 100 100 99 100 100 100 99 98 95 94 99 100 . 100 99 100 Engine 5 | . 4 . . . . . 6 6 3 . 5 5 5 5 7 11 10 10 10 10 10 10 10 10 10 9 5 5 5 5 5 5 5 4 4 4 4 . 4 4 4 Core 3 | . 7 20 20 20 11 10 7 6 8 7 6 5 5 5 2 . . . . . . . . . . . . . . . . . . . . . . . . . . Reactor 1 | . . . . . . . . . . 4 . . . . . . . . . . . . . . . . 5 5 5 5 5 5 5 4 4 4 4 . 4 4 4 Flight 11 | . 14 20 20 20 20 13 14 13 12 12 12 11 11 11 11 11 10 10 10 10 10 10 10 10 10 10 10 10 10 10 10 10 10 9 9 9 9 . 9 9 9 Device 23 | . . . . . 7 10 13 13 17 25 24 24 23 23 26 25 26 26 26 25 25 26 26 25 26 26 26 29 30 30 30 29 29 22 26 27 28 . 28 28 28 Processor 20 | . 8 20 7 . 11 10 16 20 24 25 23 24 23 23 22 22 22 24 21 21 21 21 21 21 21 21 21 20 20 20 20 20 20 19 19 19 19 . 19 19 19 Hackware 8 | . . . 12 20 14 20 10 10 6 . . 2 5 5 5 5 5 5 10 10 10 10 10 10 10 10 10 10 10 10 10 10 10 19 15 14 14 . 14 14 14 Energy Gun 15 | . . . . . . 8 22 20 21 25 24 24 22 21 22 21 21 21 20 18 21 21 15 15 15 15 15 18 19 20 19 11 3 . . . . . . . . Energy Cannon 4 | . 24 40 25 . . . . . . . . . . . . . . . . . . . 4 5 5 5 5 1 . . . 8 15 14 13 18 19 . 18 18 17 Ballistic Gun 1 | . 8 . . . 12 9 5 6 2 . . . . . . . . . . . . . . . . . . . . . . . . . . . . . . . . Naked Turns 72 | . 72 . . . . . . . . . . . . . . . . . . . . . . . . . . . . . . . . . . . . . . . . Heaviest Build 77 | . 11 11 13 13 23 23 30 29 33 43 43 39 41 41 51 50 50 50 50 50 51 51 58 58 58 59 55 58 56 56 55 66 66 61 66 76 76 76 77 77 77 Greatest Support 85 | 3 14 14 14 14 27 30 32 32 47 47 48 50 50 48 59 51 59 51 61 69 69 61 61 61 61 61 69 74 66 74 74 66 74 66 66 76 76 76 81 85 81 Greatest Overweight (x) 1 | . . . . . . 1 . . 1 . . . . . . . . . . 1 . . . . . . . . . . 1 . . . . . . . . . . Average Overweight (x) . | . . . . . . . . . . . . . . . . . . . . . . . . . . . . . . . . . . . . . . . . . . Largest Inventory Capacity 6 | . . . . . 1 3 3 3 4 4 4 4 4 4 4 4 4 4 4 4 4 4 4 4 4 4 4 4 6 6 6 6 6 6 6 6 6 6 6 6 6 Average Capacity 4 | . . . . . . 2 3 3 3 4 4 4 4 4 4 4 4 4 4 4 4 4 4 4 4 4 4 4 5 6 6 6 6 6 6 6 6 6 6 6 6 Most Carried 6 | . . . . . 1 3 3 3 4 4 4 4 4 4 4 4 4 4 4 4 4 4 4 4 4 4 4 4 6 6 6 6 6 6 6 6 6 5 6 6 5 Average Carried 3 | . . . . . . 2 2 2 3 3 3 4 4 3 3 4 4 4 4 3 4 4 4 4 4 4 4 3 5 6 6 6 6 4 5 5 5 5 5 5 5 Final Capacity 6 | . . . . . 1 3 3 3 4 4 4 4 4 4 4 4 4 4 4 4 4 4 4 4 4 4 4 4 6 6 6 6 6 6 6 6 6 6 6 6 6 Final Carried 6 | . . . . . 1 3 3 3 4 4 4 4 4 4 4 4 4 4 4 4 4 4 4 4 4 4 4 4 6 6 6 6 6 6 6 6 5 5 5 5 5 Class Distribution -------------------- 75% | Hacker-Sprinter 12% | Bothacker-Sprinter 8% | Hacker-Mutant Dominant Class ---------------- Hacker-Mutant | -10/Materials Hacker-Mutant | -10/Mines Hacker-Mutant | -10/Exiles Hacker-Mutant | -9/Mines Hacker-Mutant | -8/Materials Hacker-Mutant | -8/Garrison Hacker-Sprinter | -8/Materials Hacker-Sprinter | -8/Garrison Hacker-Sprinter | -7/Factory Hacker-Sprinter | -7/Waste Hacker-Sprinter | -7/Factory Hacker-Sprinter | -7/Garrison Hacker-Sprinter | -7/Factory Hacker-Sprinter | -7/Garrison Hacker-Sprinter | -6/Factory Hacker-Sprinter | -6/Waste Hacker-Sprinter | -6/Factory Hacker-Sprinter | -6/Garrison Hacker-Sprinter | -6/Factory Hacker-Sprinter | -6/Garrison Hacker-Sprinter | -5/Factory Hacker-Sprinter | -5/Upper Caves Hacker-Sprinter | -5/Upper Caves Hacker-Sprinter | -5/Zhirov Hacker-Sprinter | -4/Proximity Caves Hacker-Sprinter | -4/Factory Hacker-Sprinter | -4/Waste Hacker-Sprinter | -4/Factory Bothacker-Sprinter | -4/Garrison Bothacker-Sprinter | -4/Factory Bothacker-Sprinter | -4/Garrison Bothacker-Sprinter | -3/Research Bothacker-Sprinter | -3/Garrison Bothacker-Sprinter | -2/Research Hacker-Sprinter | -2/Garrison Hacker-Sprinter | -1/Access Hacker-Sprinter | -1/Garrison Hacker-Sprinter | -1/Access Hacker-Sprinter | -1/Garrison Hacker-Sprinter | -1/Access Hacker-Sprinter | -1/Command Resources | -11 -10 -10 -10 -9 -8 -8 -8 -8 -7 -7 -7 -7 -7 -7 -6 -6 -6 -6 -6 -6 -5 -5 -5 -5 -4 -4 -4 -4 -4 -4 -4 -3 -3 -2 -2 -1 -1 -1 -1 -1 -1 ----------- Run | Scr Mat Min Exi Min Mat Gar Mat Gar Fac Was Fac Gar Fac Gar Fac Was Fac Gar Fac Gar Fac Upp Upp Zhi Pro Fac Was Fac Gar Fac Gar Res Gar Res Gar Acc Gar Acc Gar Acc Com Matter Collected 5418 | 200 146 . . 20 894 809 257 125 293 18 359 10 120 60 221 80 100 . 50 100 95 . 10 60 20 130 . 233 44 77 37 150 30 110 90 267 19 . 54 120 10 Remotely . | . . . . . . . . . . . . . . . . . . . . . . . . . . . . . . . . . . . . . . . . . . Salvage Created 56616 | . 445 219 . . 699 2065 955 883 2452 1254 3195 1000 1793 907 4734 . 2820 976 2295 893 2304 922 532 460 79 1122 . 6352 2105 1742 3009 2678 1080 924 932 2495 272 . 759 836 428 Parts 2785 | . 29 22 . . 51 61 64 43 91 28 190 72 132 54 220 . 135 50 131 74 98 47 30 11 18 60 . 289 113 94 106 109 74 52 41 98 17 . 24 38 19 Haulers Intercepted 57 | . 2 . . . 4 . 4 . 5 . 6 . 4 . 6 . 4 . 2 . 4 . . . . 4 . 5 . 1 . 1 . . . 5 . . . . . Recyclers Shooed 4 | . 1 . . . . . . . . . 1 . 1 . 1 . . . . . . . . . . . . . . . . . . . . . . . . . . Parts Field Recycled . | . . . . . . . . . . . . . . . . . . . . . . . . . . . . . . . . . . . . . . . . . . Retrieved Matter . | . . . . . . . . . . . . . . . . . . . . . . . . . . . . . . . . . . . . . . . . . . Parts Self-Destructed 61 | . . . . . . . . . . . . . . . . . . . . . . 17 31 4 9 . . . . . . . . . . . . . . . . Prevented 37 | . . . . . . . . . . . . . . . . . . . . . . 9 17 4 7 . . . . . . . . . . . . . . . . Kills | -11 -10 -10 -10 -9 -8 -8 -8 -8 -7 -7 -7 -7 -7 -7 -6 -6 -6 -6 -6 -6 -5 -5 -5 -5 -4 -4 -4 -4 -4 -4 -4 -3 -3 -2 -2 -1 -1 -1 -1 -1 -1 ------- Run | Scr Mat Min Exi Min Mat Gar Mat Gar Fac Was Fac Gar Fac Gar Fac Was Fac Gar Fac Gar Fac Upp Upp Zhi Pro Fac Was Fac Gar Fac Gar Res Gar Res Gar Acc Gar Acc Gar Acc Com Combat Hostiles Destroyed 821 | . 9 13 . . 21 27 14 14 32 . 49 27 32 20 54 . 35 23 37 27 19 14 9 . 5 9 . 69 44 29 44 33 19 15 14 25 4 . 11 16 8 Guns 572 | . 5 . . . 7 9 14 14 25 . 46 23 29 20 51 . 33 22 34 26 16 14 6 . 4 5 . 57 41 23 36 10 2 . . . . . . . . Cannons 168 | . 4 13 . . 14 18 . . . . . . . . . . . . . . . . 2 . 1 4 . 1 . . . 13 15 13 14 21 4 . 9 14 8 AOE 31 | . . . . . . . . . 7 . 1 4 3 . 3 . 2 1 1 1 3 . . . . . . . . 4 . . . . . 1 . . . . . Classes Destroyed 22 | . 5 . . . 2 . 2 1 6 . 2 . . . . . . . 1 1 . 1 . . . . . . . . 1 . . . . . . . . . . Worker 25 | . . . . . . . . . 5 . . . 6 . 5 . 1 . 1 . 2 . . . . 1 . 3 . 1 . . . . . . . . . . . Builder 8 | . 1 . . . . . 1 . . . 3 . 1 . . . . . . . . . . . . . . 2 . . . . . . . . . . . . . Tunneler 1 | . . . . . . . 1 . . . . . . . . . . . . . . . . . . . . . . . . . . . . . . . . . . Hauler 57 | . 2 . . . 4 . 4 . 5 . 6 . 4 . 6 . 4 . 2 . 4 . . . . 4 . 5 . 1 . 1 . . . 5 . . . . . Recycler 6 | . . . . . . . . . 1 . . . . . 3 . 2 . . . . . . . . . . . . . . . . . . . . . . . . Carrier 4 | . . . . . . . . . 1 . . . . . . . . . . . . . . . . . . . . . . 1 . . . 1 . . 1 . . Mechanic 4 | . . . . . . . . . 1 . . . . . . . . . . . . . . . . . . . 1 . 1 . . . . 1 . . . . . Operator 11 | . . . . . . . . . 3 . 4 . 2 . . . . . . . 1 . . . . . . . . 1 . . . . . . . . . . . Watcher 70 | . 1 . . . 2 . 2 . 2 . 7 . 6 . 6 . 3 . 4 . 5 . . . . 2 . 10 . 2 . 4 . 4 . 5 . . . . 5 Swarmer 190 | . 4 9 . . 4 8 2 2 8 . 7 10 4 2 18 . 6 6 6 10 . 2 2 . 3 . . 12 8 8 15 4 8 . 2 2 . . 9 4 5 Saboteur 10 | . . . . . . . . . . . . . . . . . . . 1 . . . . . . . . 1 2 . 1 3 . 1 . . . . . 1 . Grunt 283 | . 5 4 . . 7 17 5 11 15 . 21 11 15 12 16 . 7 10 16 9 7 3 3 1 1 2 . 18 15 10 4 8 2 4 6 8 2 . 1 7 . Brawler 42 | . . . . . 1 . . . . . 3 . 1 1 1 . 6 1 2 3 . . . . . 1 . 3 7 1 3 3 . 2 . 1 1 . . 1 . Duelist 40 | . . . . . . . . 1 1 . 3 . 1 1 1 . 1 2 1 2 2 . 1 . . . . 3 3 1 5 4 . 1 . 4 . . . 2 . Protector 11 | . . . . . . . . . . . 2 . . . 1 . 1 1 . . 1 . . . . . . 3 . 1 . 1 . . . . . . . . . Sentry 138 | . . . . . 9 2 6 . 7 . 9 6 7 3 12 . 13 1 5 1 4 1 2 . . 3 . 9 6 6 7 5 5 4 1 2 . . . 1 1 Demolisher 2 | . . . . . . . . . . . 1 . . . . . . . . . . . . . . . . . . . 1 . . . . . . . . . . Specialist 2 | . . . . . . . . . . . . . . . . . . . . . . . . . . . . . . . 2 . . . . . . . . . . Hunter 50 | . . . . . . . 1 . . . 1 . 4 1 5 . 1 2 5 . 5 1 . . 2 2 . 8 . 2 4 2 2 . . . . . 2 . . Programmer 54 | . . . . . . . . . 1 . 2 . 2 . 1 . 1 . 1 1 . . 1 . . 2 . 15 2 . 2 3 2 3 5 9 1 . . . . Behemoth 4 | . . . . . . . . . . . . . . . . . . . . 1 . . . . . . . . 1 . 1 . 1 . . . . . . . . Combat Programmer 2 | . . . . . . . . . . . . . . . . . . . . . . . . . . . . . . . . . . . . . . . . . 2 Wasp 1 | . . . . . . . . . . . . . . . . . 1 . . . . . . . . . . . . . . . . . . . . . . . . Thug 4 | . . . . . . . . . . . . . . . . . . . . . . 4 . . . . . . . . . . . . . . . . . . . Savage 1 | . . . . . . . . . . . . . . . . . . . . . . 1 . . . . . . . . . . . . . . . . . . . Butcher 1 | . . . . . . . . . . . . . . . . . . . . . . 1 . . . . . . . . . . . . . . . . . . . Mutant 1 | . . . . . . . . . . . . . . . . . . . . . . 1 . . . . . . . . . . . . . . . . . . . Best Kill Streak 16 | . 4 5 . . 5 7 5 3 12 . 11 5 10 7 11 . 14 5 6 5 8 5 7 . 3 6 . 15 16 12 10 9 8 3 4 9 4 . 4 6 9 Combat Bots Only 15 | . 3 5 . . 5 7 4 3 7 . 11 5 8 7 10 . 13 5 6 5 7 5 7 . 3 4 . 7 15 12 10 9 8 3 4 8 4 . 4 6 2 Max Kills in Single Turn 8 | . 2 1 . . 1 2 2 2 8 . 4 2 6 2 4 . 2 2 2 2 2 2 1 1 2 2 . 3 2 5 3 2 1 1 1 2 1 . 1 2 1 Gunslinging 2 | . 1 . . . . 1 . 1 1 . 2 1 . 1 2 . 1 1 1 1 1 1 . . . . . 2 1 2 2 . . . . . . . . . . Exploded 5 | . . . . . . . . . 5 . 1 2 2 . 1 . 1 1 1 1 1 . . . . . . . . 4 . . . . . 1 . . . . . Melee . | . . . . . . . . . . . . . . . . . . . . . . . . . . . . . . . . . . . . . . . . . . Uniques/NPCs Destroyed . | . . . . . . . . . . . . . . . . . . . . . . . . . . . . . . . . . . . . . . . . . . Combat | -11 -10 -10 -10 -9 -8 -8 -8 -8 -7 -7 -7 -7 -7 -7 -6 -6 -6 -6 -6 -6 -5 -5 -5 -5 -4 -4 -4 -4 -4 -4 -4 -3 -3 -2 -2 -1 -1 -1 -1 -1 -1 -------- Run | Scr Mat Min Exi Min Mat Gar Mat Gar Fac Was Fac Gar Fac Gar Fac Was Fac Gar Fac Gar Fac Upp Upp Zhi Pro Fac Was Fac Gar Fac Gar Res Gar Res Gar Acc Gar Acc Gar Acc Com Damage Taken 23569 | . 240 332 . 224 734 828 117 389 821 . 1111 621 792 248 1183 . 1293 404 1050 353 787 297 176 . 121 523 . 2120 842 415 1681 602 1779 151 253 644 449 . 512 343 1134 Core 18938 | . 203 280 . 182 610 663 99 313 662 . 872 502 630 194 926 . 1048 331 851 279 624 231 141 . 99 418 . 1695 666 334 1348 473 1437 129 204 535 364 . 400 274 921 Absorbed by Shields 799 | . . . . . . 26 . . 16 . 46 5 42 . 214 . 17 . . 11 . . . . . . . . 6 . 10 . 187 . 17 . 68 . 104 . 30 Redirected to Core 16176 | . 114 178 . 149 432 568 67 276 526 . 775 381 523 181 832 . 825 262 702 255 601 231 121 . 83 384 . 1520 624 279 1196 449 1244 81 186 400 313 . 400 248 770 Core Remaining (%) 82 | 100 . . . 75 . . . 100 . . . . . 100 . . . . . 100 . . . . 100 . . . . . 66 . 22 . 100 . . . . . 62 Volleys Fired 1671 | . 34 27 . . 81 131 29 30 66 16 102 34 67 34 90 . 66 34 59 49 41 26 17 10 6 28 . 160 66 35 69 52 27 31 26 53 6 . 21 22 26 Largest 4 | . 2 2 . . 3 3 4 4 4 4 4 4 4 4 4 . 4 4 4 4 4 4 4 4 4 4 . 4 4 4 4 4 4 3 3 4 4 . 4 4 4 Hottest 381 | . 120 120 . . 121 185 246 246 250 250 255 255 260 260 260 . 260 260 260 260 260 260 298 298 298 298 . 300 300 301 301 381 381 334 334 374 374 . 374 374 374 Shots Fired 5562 | . 68 54 . . 171 301 106 119 225 43 379 126 232 129 356 . 248 126 230 169 164 104 60 31 24 91 . 555 252 135 252 187 95 76 56 166 20 . 69 66 77 Gun 4554 | . 28 . . . 98 221 106 119 225 43 379 126 232 129 356 . 248 126 230 165 164 104 47 21 18 72 . 543 250 135 249 97 23 . . . . . . . . Cannon 992 | . 40 54 . . 73 79 . . . . . . . . . . . . . . . . 13 10 6 19 . 12 . . . 90 72 76 56 165 20 . 67 64 76 Launcher . | . . . . . . . . . . . . . . . . . . . . . . . . . . . . . . . . . . . . . . . . . . Special 16 | . . . . . . 1 . . . . . . . . . . . . . 4 . . . . . . . . 2 . 3 . . . . 1 . . 2 2 1 Kinetic 412 | . 28 . . . 171 128 21 29 35 . . . . . . . . . . . . . . . . . . . . . . . . . . . . . . . . Thermal 2997 | . 40 54 . . . 172 85 90 166 33 198 58 134 63 180 . 132 68 118 81 82 52 34 20 12 56 . 315 128 66 127 100 49 30 41 99 12 . 34 26 42 Explosive . | . . . . . . . . . . . . . . . . . . . . . . . . . . . . . . . . . . . . . . . . . . Electromagnetic 2137 | . . . . . . . . . 24 10 181 68 98 66 176 . 116 58 112 84 82 52 26 11 12 35 . 240 122 69 122 87 46 46 15 66 8 . 33 38 34 Robot Hit Streak 89 | . 9 14 . . 25 47 51 43 40 29 69 57 41 73 43 . 76 84 38 43 44 47 43 22 24 69 . 75 40 89 42 34 29 18 24 24 18 . 21 28 39 Robot Miss Streak 3 | . 3 2 . . 1 2 1 1 2 1 2 2 2 1 2 . 2 1 2 2 1 2 1 . 1 1 . 2 1 1 2 2 1 1 1 2 . . 1 2 1 Penetration Max . | . . . . . . . . . . . . . . . . . . . . . . . . . . . . . . . . . . . . . . . . . . Secondary Targets 119 | . 1 . . . . 1 1 3 3 . 7 6 7 4 10 . 7 4 10 6 6 4 . . . . . 13 10 4 12 . . . . . . . . . . Max Gunslinging Chain 2 | . 1 . . . . 1 1 1 1 . 2 1 1 1 2 . 1 1 1 1 2 1 . . . . . 2 2 2 2 . . . . . . . . . . Shots Hit Robots 3869 | . 45 37 . . 140 231 71 71 163 33 273 92 162 67 237 . 186 76 156 105 119 73 44 17 17 68 . 369 189 98 190 116 62 60 38 119 16 . 37 42 50 Core Hits 2101 | . 17 16 . . 45 81 29 33 85 10 160 67 102 42 157 . 125 47 94 71 91 44 18 10 12 40 . 180 85 66 82 63 38 37 21 64 10 . 14 22 23 Critical Hits 484 | . 1 1 . . 2 14 6 6 23 3 30 17 20 12 27 . 26 17 22 16 16 12 4 5 3 8 . 63 29 19 29 15 8 4 3 13 3 . 3 4 . Critical Kills 162 | . . 1 . . 2 3 1 4 8 . 5 8 7 8 11 . 10 7 7 3 6 6 1 . 1 2 . 19 8 8 10 6 1 1 1 4 1 . 1 1 . Critical Parts Destroyed 263 | . 1 . . . . 11 5 2 15 2 16 6 9 4 12 . 13 9 13 9 9 5 2 3 1 5 . 33 19 10 15 8 6 3 2 8 2 . 2 3 . Melee Attacks 28 | . . . . . . . . . . . . . . 19 . . . . . . . . . . . . . . . . . . . . . . . . . 4 5 Impact 19 | . . . . . . . . . . . . . . 19 . . . . . . . . . . . . . . . . . . . . . . . . . . . Slashing 9 | . . . . . . . . . . . . . . . . . . . . . . . . . . . . . . . . . . . . . . . . 4 5 Piercing . | . . . . . . . . . . . . . . . . . . . . . . . . . . . . . . . . . . . . . . . . . . Sneak Attacks . | . . . . . . . . . . . . . . . . . . . . . . . . . . . . . . . . . . . . . . . . . . Combat Hostiles . | . . . . . . . . . . . . . . . . . . . . . . . . . . . . . . . . . . . . . . . . . . Follow-up Attacks . | . . . . . . . . . . . . . . . . . . . . . . . . . . . . . . . . . . . . . . . . . . Damage Inflicted 126388 | . 700 701 . . 2771 6011 1681 1733 5922 874 7509 2605 5523 1686 6896 . 5809 2233 4674 2489 3313 1794 1132 527 823 1979 . 12811 6234 4091 6787 5177 3052 2754 2462 5899 1028 . 2055 2322 2331 Guns 86908 | . 175 . . . 1260 4337 1681 1733 3812 874 6561 2294 4286 1686 6412 . 5127 2050 4281 2386 2739 1794 839 399 337 1346 . 12285 6234 3108 6505 1845 522 . . . . . . . . Cannons 30389 | . 522 701 . . 1511 1674 . . . . . . . . . . . . . . . . 293 128 193 595 . 364 . . . 3325 2530 2754 2462 5601 1028 . 2055 2322 2331 Explosions 9077 | . . . . . . . . . 2110 . 948 311 1237 . 484 . 682 183 393 99 574 . . . 293 38 . 162 . 983 282 . . . . 298 . . . . . Melee . | . . . . . . . . . . . . . . . . . . . . . . . . . . . . . . . . . . . . . . . . . . Ramming 14 | . 3 . . . . . . . . . . . . . . . . . . 4 . . . . . . . . . . . 7 . . . . . . . . . Kinetic 5695 | . 175 . . . 2771 2000 164 237 348 . . . . . . . . . . . . . . . . . . . . . . . . . . . . . . . . Thermal 80009 | . 522 701 . . . 4011 1517 1496 4878 801 5308 1586 4220 1003 4390 . 3911 1655 2944 1686 2134 1018 719 392 540 1202 . 7927 3343 1612 3820 2828 1848 1231 1932 3937 771 . 1265 1229 1632 Explosive 1550 | . . . . . . . . . 490 . . . . . . . . . . . 57 . . . . . . 20 . 983 . . . . . . . . . . . Electromagnetic 39120 | . . . . . . . . . 206 73 2201 1019 1303 683 2506 . 1898 578 1730 799 1122 776 413 135 283 777 . 4864 2891 1496 2967 2342 1204 1523 530 1962 257 . 790 1093 699 Impact . | . . . . . . . . . . . . . . . . . . . . . . . . . . . . . . . . . . . . . . . . . . Slashing . | . . . . . . . . . . . . . . . . . . . . . . . . . . . . . . . . . . . . . . . . . . Piercing . | . . . . . . . . . . . . . . . . . . . . . . . . . . . . . . . . . . . . . . . . . . Highest Corruption 10 | . 1 1 1 1 4 4 4 4 7 7 7 . 2 . . . . . . 1 . . . . . 1 10 10 1 3 . 1 1 3 1 6 4 . . . 5 Average Corruption 3 | . 1 1 1 1 4 4 4 4 5 7 6 . 1 . . . . . . 1 . . . . . 1 4 2 1 1 . 1 1 1 1 1 2 . . . 3 Corruption Purged 38 | . . . . . . . . . . . 7 . 4 . . . . . . 1 . . . . . . . 12 . 3 . . . 2 1 4 4 . . . . Effects 245 | . 1 3 . . 22 36 24 23 13 6 56 . 2 . . . . . . 1 . . . . . . . 13 6 5 . 4 1 6 3 9 5 . . . 6 Message Errors 46 | . 1 . . . 4 6 4 4 4 3 7 . . . . . . . . . . . . . . . . 2 1 . . 1 . 1 3 2 2 . . . 1 Matter Fused 44 | . . . . . 3 7 7 3 4 . 14 . . . . . . . . . . . . . . . . 2 . 1 . . . . . 1 . . . . 2 Heat Flow Errors 27 | . . . . . 1 3 3 6 1 1 8 . . . . . . . . . . . . . . . . 2 . . . . . 1 . . 1 . . . . Energy Discharges 21 | . . 2 . . 1 2 4 3 . 1 . . 1 . . . . . . 1 . . . . . . . 2 . . . 1 . . . 1 2 . . . . Parts Rejected 2 | . . . . . . 1 1 . . . . . . . . . . . . . . . . . . . . . . . . . . . . . . . . . . Data Loss (minor) 27 | . . . . . 6 4 1 2 1 . 5 . 1 . . . . . . . . . . . . . . 3 . . . 2 1 1 . . . . . . . Data Loss (major) 1 | . . . . . . . . . . . 1 . . . . . . . . . . . . . . . . . . . . . . . . . . . . . . Misfires 2 | . . . . . . . . . . 1 1 . . . . . . . . . . . . . . . . . . . . . . . . . . . . . . Targeting Errors 58 | . . 1 . . 4 12 2 5 2 . 13 . . . . . . . . . . . . . . . . 1 5 3 . . . 3 . 4 . . . . 3 Weapon Failures 17 | . . . . . 3 1 2 . 1 . 7 . . . . . . . . . . . . . . . . 1 . 1 . . . . . 1 . . . . . Overload Shots 1 | . . . . . . . . . . . . . . . . . . . . . . . . . . . . . . . . . . 1 . . . . . . . Effects 1 | . . . . . . . . . . . . . . . . . . . . . . . . . . . . . . . . . . 1 . . . . . . . Energy Bleed 1 | . . . . . . . . . . . . . . . . . . . . . . . . . . . . . . . . . . 1 . . . . . . . Overflow Damage 1981 | . 14 6 . . 60 44 . . 322 . 5 . 215 . 14 . 74 . . . 7 . . 3 43 . . 56 . 40 . 30 76 75 266 318 25 . 137 91 60 Projectiles 1220 | . 14 6 . . 60 44 . . . . . . . . . . . . . . . . . 3 4 . . 56 . . . 30 76 75 266 273 25 . 137 91 60 Explosions 761 | . . . . . . . . . 322 . 5 . 215 . 14 . 74 . . . 7 . . . 39 . . . . 40 . . . . . 45 . . . . . Melee . | . . . . . . . . . . . . . . . . . . . . . . . . . . . . . . . . . . . . . . . . . . Knockbacks 24 | . . . . . 9 15 . . . . . . . . . . . . . . . . . . . . . . . . . . . . . . . . . . . Impact . | . . . . . . . . . . . . . . . . . . . . . . . . . . . . . . . . . . . . . . . . . . Kinetic 23 | . . . . . 9 14 . . . . . . . . . . . . . . . . . . . . . . . . . . . . . . . . . . . Secondary 1 | . . . . . . 1 . . . . . . . . . . . . . . . . . . . . . . . . . . . . . . . . . . . Self-Inflicted Damage 1133 | . 1 . . . . . . . . . 188 . 199 . 49 . 74 . 121 39 147 48 . . . 77 . 109 . . 39 3 . . . 39 . . . . . Shots 25 | . . . . . . . . . . . 5 . 4 . 1 . 2 . 3 1 3 1 . . . 1 . 2 . . 1 . . . . 1 . . . . . Rammed 3 | . 1 . . . . . . . . . . . . . . . . . . 1 . . . . . . . . . . . 1 . . . . . . . . . Targets Rammed 3 | . 1 . . . . . . . . . . . . . . . . . . 1 . . . . . . . . . . . 1 . . . . . . . . . Kicked . | . . . . . . . . . . . . . . . . . . . . . . . . . . . . . . . . . . . . . . . . . . Crushed . | . . . . . . . . . . . . . . . . . . . . . . . . . . . . . . . . . . . . . . . . . . Highest Temperature 478 | . 256 236 . . 402 460 478 343 381 197 297 174 200 194 212 . 201 199 225 198 197 198 224 196 224 206 . 199 210 227 227 379 406 196 196 335 257 . 292 303 295 Average Temperature 110 | . 81 110 . . 84 134 141 124 101 86 98 102 93 93 111 . 104 99 105 92 111 112 120 126 132 101 . 90 121 103 115 138 140 94 108 129 130 . 130 128 121 Received Heat Transfer 3590 | . 84 87 . . 279 309 36 189 273 . 246 159 102 66 183 . 171 81 243 54 99 45 27 . . 9 . 201 138 63 93 126 83 18 12 9 33 . 9 27 36 Effects 31 | . 2 . . . 3 4 7 . 4 . . . . . . . . . 1 . . . . . 1 . . . 1 . . 4 3 . . . . . 1 . . Shutdowns 6 | . . . . . . 1 4 . 1 . . . . . . . . . . . . . . . . . . . . . . . . . . . . . . . . Energy Bleed 7 | . . . . . . 1 2 . . . . . . . . . . . 1 . . . . . 1 . . . 1 . . . 1 . . . . . . . . Interference 11 | . 2 . . . . . . . 2 . . . . . . . . . . . . . . . . . . . . . . 4 2 . . . . . 1 . . Matter Decay 2 | . . . . . 2 . . . . . . . . . . . . . . . . . . . . . . . . . . . . . . . . . . . . Short Circuit 3 | . . . . . . 2 . . 1 . . . . . . . . . . . . . . . . . . . . . . . . . . . . . . . . Damage (minor) 2 | . . . . . 1 . 1 . . . . . . . . . . . . . . . . . . . . . . . . . . . . . . . . . . Siege Activations . | . . . . . . . . . . . . . . . . . . . . . . . . . . . . . . . . . . . . . . . . . . Robots Corrupted 60 | . . . . . . . . . . . 2 . 1 . . . 1 . 2 . . . 1 . . 1 . 10 4 2 8 12 3 3 . 4 . . 3 2 1 Combat Hostiles 49 | . . . . . . . . . . . 2 . . . . . . . 2 . . . 1 . . . . 10 3 2 8 10 2 2 . 3 . . 2 2 . Parts Fried 287 | . . . . . . . . . . . 4 5 7 2 19 . 4 5 5 4 11 5 3 1 2 10 . 58 25 17 19 21 9 15 2 15 . . 5 6 8 Impact Corruptions . | . . . . . . . . . . . . . . . . . . . . . . . . . . . . . . . . . . . . . . . . . . Robots Melted 4 | . . . . . . 3 . . . . . . . . . . . . . . . . . . . . . 1 . . . . . . . . . . . . . Combat Hostiles 1 | . . . . . . . . . . . . . . . . . . . . . . . . . . . . 1 . . . . . . . . . . . . . Parts Melted 190 | . 2 4 . . . 7 3 1 21 . 22 2 17 3 10 . 3 7 7 5 7 1 2 . . 6 . 24 7 4 4 6 2 1 1 5 1 . 2 3 . Heat Transferred 90597 | . 1110 1443 . . . 5735 2183 1975 5383 1036 6816 1938 4840 1252 5296 . 4484 2036 3604 2259 2801 1480 1036 462 570 1752 . 8565 3793 2165 4270 2664 1366 925 1073 3049 444 . 777 777 1238 Parts Sabotaged 6 | . . . . . . . . . . . . . . . . . . . 2 . . . . . . . . . . . . . 4 . . . . . . . . Parts Stolen . | . . . . . . . . . . . . . . . . . . . . . . . . . . . . . . . . . . . . . . . . . . Parts Stripped . | . . . . . . . . . . . . . . . . . . . . . . . . . . . . . . . . . . . . . . . . . . Power Chain Reactions 54 | . . . . . . . . . 1 . 10 4 5 . 7 . 6 2 5 2 6 1 . . 1 1 . 1 . . 1 . . . . 1 . . . . . Missiles Intercepted . | . . . . . . . . . . . . . . . . . . . . . . . . . . . . . . . . . . . . . . . . . . Alert | -11 -10 -10 -10 -9 -8 -8 -8 -8 -7 -7 -7 -7 -7 -7 -6 -6 -6 -6 -6 -6 -5 -5 -5 -5 -4 -4 -4 -4 -4 -4 -4 -3 -3 -2 -2 -1 -1 -1 -1 -1 -1 ------- Run | Scr Mat Min Exi Min Mat Gar Mat Gar Fac Was Fac Gar Fac Gar Fac Was Fac Gar Fac Gar Fac Upp Upp Zhi Pro Fac Was Fac Gar Fac Gar Res Gar Res Gar Acc Gar Acc Gar Acc Com Peak Influence 2653 | . 422 348 . 30 708 1417 1318 1559 1766 619 1519 1828 1501 1529 1432 501 1994 2183 1327 1813 1806 . . . . 413 146 2233 2653 2069 2482 2069 2028 1684 1713 1939 1645 1600 1809 2052 1911 Average Influence 1122 | . 180 224 . 17 290 913 998 1233 994 618 933 1258 1165 1229 980 501 1196 1832 1028 1288 1384 . . . . 235 132 906 2042 1567 1917 1680 1884 1299 1431 1426 1563 1225 1478 1771 1658 Maximum Alert Level 5 | . 2 1 . . 3 4 4 4 5 2 4 5 4 4 4 2 5 5 4 5 5 . . . . 2 . 5 5 5 5 5 5 5 5 5 5 5 5 5 5 Low Security (%) 7 | 100 50 41 . 100 36 . . . . . . . . . . . . . . . . . . . . 42 100 34 . . . . . . . . . . . . . Level 1 4 | . 45 58 . . 32 3 . . . . . . . . . . 1 . . . . . . . . 51 . 6 . . . . . . . . . . . . . Level 2 8 | . 3 . . . 27 29 14 . . 100 22 . . . 15 100 13 . 14 . . . . . . 6 . 8 . . . . . . . . . . . . . Level 3 22 | . . . . . 2 30 49 36 77 . 53 49 27 30 54 . 19 . 29 24 18 . . . . . . 3 . . . . . 9 . . . . . . . Level 4 38 | . . . . . . 35 35 63 17 . 24 36 72 69 29 . 43 18 55 62 69 . . . . . . 22 3 60 17 43 4 80 74 76 85 75 65 1 32 Level 5 10 | . . . . . . . . . 5 . . 5 . . . . . 81 . 13 1 . . . . . . 20 39 13 40 47 17 4 22 21 3 . 20 . 67 High Security 6 | . . . . . . . . . . . . 8 . . . . 21 . . . 10 . . . . . . 4 57 26 42 8 77 6 2 2 10 . 14 . . Max Security . | . . . . . . . . . . . . . . . . . . . . . . . . . . . . . . . . . . . . . . 25 . 98 . Squads Dispatched 189 | . 2 . . . 4 . 4 . 9 . 10 4 13 . 12 . 17 . 13 . 5 . 1 . . 5 . 21 8 14 8 8 8 4 . 5 . . . 13 1 Investigation 29 | . 1 . . . 1 . 3 . 1 . 3 . 5 . 1 . 1 . 5 . 1 . . . . 1 . . . 4 . . . 1 . . . . . 1 . Extermination 17 | . . . . . . . . . 1 . 1 . 2 . 1 . 1 . 1 . . . . . . 1 . 5 . 1 . 1 . 1 . 1 . . . . . Reinforcement 23 | . 1 . . . 2 . 1 . 3 . . . 3 . 4 . 2 . 3 . 2 . . . . 1 . 1 . . . . . . . . . . . . . Assault 90 | . . . . . . . . . 4 . 3 4 1 . 3 . 8 . 3 . 2 . 1 . . . . 10 8 4 8 4 8 2 . 4 . . . 12 1 Garrison 30 | . . . . . 1 . . . . . 3 . 2 . 3 . 5 . 1 . . . . . . 2 . 5 . 5 . 3 . . . . . . . . . Intercept . | . . . . . . . . . . . . . . . . . . . . . . . . . . . . . . . . . . . . . . . . . . Construction Impeded 4 | . . . . . . . 1 . . . . . 1 . 1 . 1 . . . . . . . . . . . . . . . . . . . . . . . . Haulers Reinforced 8 | . . . . . . . . . 1 . . . 2 . 2 . . . 1 . 1 . . . . 1 . . . . . . . . . . . . . . . Alert ID Control Effect 1 | . . . . . . . . . . . . . . . . . . . . . . . . . . . . . . 1 . . . . . . . . . . . Stealth | -11 -10 -10 -10 -9 -8 -8 -8 -8 -7 -7 -7 -7 -7 -7 -6 -6 -6 -6 -6 -6 -5 -5 -5 -5 -4 -4 -4 -4 -4 -4 -4 -3 -3 -2 -2 -1 -1 -1 -1 -1 -1 --------- Run | Scr Mat Min Exi Min Mat Gar Mat Gar Fac Was Fac Gar Fac Gar Fac Was Fac Gar Fac Gar Fac Upp Upp Zhi Pro Fac Was Fac Gar Fac Gar Res Gar Res Gar Acc Gar Acc Gar Acc Com Distress Signals 24 | . . . . . 1 . 3 . 2 . . . 1 . 2 . 2 . 1 . . . . . . . . 2 . 2 . 3 . 1 . 2 . . . . 2 Communications Jammed 71 | . . . . . . . . . . . . . . . . . . . . . . . . . . . . 50 . 17 . . . . . . . . . . 4 Distress Signals 69 | . . . . . . . . . . . . . . . . . . . . . . . . . . . . 48 . 17 . . . . . . . . . . 4 Times Spotted 1397 | . 20 12 . 18 38 37 37 20 71 . 73 35 48 20 72 . 63 25 53 28 30 16 12 . 6 13 2 120 77 46 87 40 74 25 17 45 13 . 28 33 43 Peak Tracking Total 33 | . 6 4 . 11 5 10 5 5 14 . 8 8 5 4 9 . 11 6 8 3 6 4 10 . 3 3 2 15 17 19 19 6 33 5 4 8 11 . 11 20 21 Tactical Retreats 96 | . 3 1 . 1 5 3 3 1 7 . 7 6 . . 4 . . 2 2 1 2 . 1 . . . . 4 7 1 7 2 6 1 2 4 . . 4 . 9 Traps | -11 -10 -10 -10 -9 -8 -8 -8 -8 -7 -7 -7 -7 -7 -7 -6 -6 -6 -6 -6 -6 -5 -5 -5 -5 -4 -4 -4 -4 -4 -4 -4 -3 -3 -2 -2 -1 -1 -1 -1 -1 -1 ------- Run | Scr Mat Min Exi Min Mat Gar Mat Gar Fac Was Fac Gar Fac Gar Fac Was Fac Gar Fac Gar Fac Upp Upp Zhi Pro Fac Was Fac Gar Fac Gar Res Gar Res Gar Acc Gar Acc Gar Acc Com Traps Triggered 72 | . 2 . . . . 7 . 11 5 . 3 3 4 1 2 . . 3 . 5 . . . . . 1 . 2 6 . 3 1 5 . 2 1 1 . 2 1 1 Indirectly . | . . . . . . . . . . . . . . . . . . . . . . . . . . . . . . . . . . . . . . . . . . Trap Hack Attempts . | . . . . . . . . . . . . . . . . . . . . . . . . . . . . . . . . . . . . . . . . . . Triggered . | . . . . . . . . . . . . . . . . . . . . . . . . . . . . . . . . . . . . . . . . . . Disarmed . | . . . . . . . . . . . . . . . . . . . . . . . . . . . . . . . . . . . . . . . . . . Reprogrammed . | . . . . . . . . . . . . . . . . . . . . . . . . . . . . . . . . . . . . . . . . . . Reused . | . . . . . . . . . . . . . . . . . . . . . . . . . . . . . . . . . . . . . . . . . . Traps Extracted . | . . . . . . . . . . . . . . . . . . . . . . . . . . . . . . . . . . . . . . . . . . Installed . | . . . . . . . . . . . . . . . . . . . . . . . . . . . . . . . . . . . . . . . . . . Triggered 3 | . . . . . . . . . . . 1 . . . . . . . . . . . . . . . . . . . . 1 1 . . . . . . . . Machines | -11 -10 -10 -10 -9 -8 -8 -8 -8 -7 -7 -7 -7 -7 -7 -6 -6 -6 -6 -6 -6 -5 -5 -5 -5 -4 -4 -4 -4 -4 -4 -4 -3 -3 -2 -2 -1 -1 -1 -1 -1 -1 ---------- Run | Scr Mat Min Exi Min Mat Gar Mat Gar Fac Was Fac Gar Fac Gar Fac Was Fac Gar Fac Gar Fac Upp Upp Zhi Pro Fac Was Fac Gar Fac Gar Res Gar Res Gar Acc Gar Acc Gar Acc Com Machines Disabled 141 | . 2 . . . 1 5 5 6 22 . 9 2 8 6 . . 7 4 3 9 4 . . 2 1 1 . 22 2 4 4 . 1 . 3 2 . . 3 . 3 Max in Single Turn 8 | . 1 . . . 1 1 2 1 8 . 4 1 4 1 . . 2 1 2 2 2 . . 1 1 1 . 6 1 3 1 . 1 . 1 1 . . 2 . 2 Garrison Access 21 | . . . . . . . . . 3 . 2 . 2 . 3 . 3 . 3 . 2 . . . . 1 . 2 . . . . . . . . . . . . . Garrison Relay 30 | . . . . . . 4 . 4 . . . 2 . 3 . . . 4 . 5 . . . . . . . . 2 . 2 . 1 . 2 . . . 1 . . Phase Generator 3 | . . . . . . . . . . . . . . . . . . . . 1 . . . . . . . . . . . . . . . . . . 1 . 1 Machines Sabotaged . | . . . . . . . . . . . . . . . . . . . . . . . . . . . . . . . . . . . . . . . . . . Garrisons Compromised . | . . . . . . . . . . . . . . . . . . . . . . . . . . . . . . . . . . . . . . . . . . Overloaded Fab Kills . | . . . . . . . . . . . . . . . . . . . . . . . . . . . . . . . . . . . . . . . . . . Fab Network Shutdowns 1 | . . . . . . . . . . . 1 . . . . . . . . . . . . . . . . . . . . . . . . . . . . . . Hacking | -11 -10 -10 -10 -9 -8 -8 -8 -8 -7 -7 -7 -7 -7 -7 -6 -6 -6 -6 -6 -6 -5 -5 -5 -5 -4 -4 -4 -4 -4 -4 -4 -3 -3 -2 -2 -1 -1 -1 -1 -1 -1 --------- Run | Scr Mat Min Exi Min Mat Gar Mat Gar Fac Was Fac Gar Fac Gar Fac Was Fac Gar Fac Gar Fac Upp Upp Zhi Pro Fac Was Fac Gar Fac Gar Res Gar Res Gar Acc Gar Acc Gar Acc Com Machines Accessed 238 | . 6 . 5 . 6 . 16 . 18 . 30 . 25 . 18 . 19 . 19 . 4 1 1 4 1 5 . 23 . 14 . 6 . 4 . 7 . 1 . 1 4 Terminals 158 | . 6 . . . 5 . 12 . 9 . 18 . 19 . 13 . 13 . 14 . 3 1 . . 1 2 . 16 . 8 . 5 . 3 . 5 . . . 1 4 Fabricators 15 | . . . . . . . . . . . 3 . 3 . 1 . 2 . 1 . . . . . . . . 2 . 3 . . . . . . . . . . . Repair Stations 4 | . . . . . . . 1 . 1 . 2 . . . . . . . . . . . . . . . . . . . . . . . . . . . . . . Recycling Units 11 | . . . . . . . 1 . 4 . 3 . . . . . . . . . . . . . . 1 . 2 . . . . . . . . . . . . . Scanalyzers 4 | . . . . . . . 1 . 1 . 1 . . . 1 . . . . . . . . . . . . . . . . . . . . . . . . . . Garrison Access 36 | . . . . . 1 . 1 . 3 . 3 . 3 . 3 . 4 . 4 . 1 . . . . 2 . 3 . 3 . 1 . 1 . 2 . 1 . . . Total Hacks 1047 | . 50 . 30 . 38 . 113 . 80 . 110 . 95 . 68 . 74 . 100 . 27 8 1 16 5 18 . 106 . 51 . 15 . 14 . 15 . 1 . 2 10 Successful 605 | . 26 . 30 . 23 . 56 . 50 . 58 . 49 . 42 . 46 . 63 . 13 8 1 16 5 10 . 59 . 24 . 6 . 5 . 8 . 1 . 1 5 Failed 436 | . 23 . . . 14 . 56 . 30 . 52 . 45 . 26 . 27 . 36 . 14 . . . . 8 . 47 . 27 . 9 . 9 . 7 . . . 1 5 Catastrophic 78 | . 2 . . . 2 . 9 . 4 . 10 . 8 . 7 . 5 . 3 . 1 . . . . 1 . 8 . 7 . 3 . 1 . 1 . . . 1 5 Database Lockouts 8 | . 1 . . . 1 . 3 . . . . . 1 . . . 1 . 1 . . . . . . . . . . . . . . . . . . . . . . Manual 566 | . 28 . 3 . 20 . 74 . 45 . 46 . 50 . 38 . 37 . 69 . 12 . . . . 16 . 68 . 34 . 5 . 6 . 8 . . . . 7 Terminals 782 | . 50 . . . 37 . 100 . 52 . 71 . 80 . 60 . 64 . 83 . 19 8 . . 5 6 . 68 . 32 . 13 . 11 . 11 . . . 2 10 Fabricators 59 | . . . . . . . . . . . 12 . 11 . 3 . 6 . 5 . . . . . . . . 13 . 9 . . . . . . . . . . . Repair Stations 10 | . . . . . . . 2 . 2 . 6 . . . . . . . . . . . . . . . . . . . . . . . . . . . . . . Recycling Units 44 | . . . . . . . 4 . 21 . 10 . . . . . . . . . . . . . . 1 . 8 . . . . . . . . . . . . . Scanalyzers 15 | . . . . . . . 6 . 2 . 5 . . . 2 . . . . . . . . . . . . . . . . . . . . . . . . . . Garrison Access 90 | . . . . . 1 . 1 . 3 . 6 . 4 . 3 . 4 . 12 . 8 . . . . 11 . 17 . 10 . 2 . 3 . 4 . 1 . . . Terminal Hacks 305 | . 19 . 30 . 12 . 27 . 17 . 19 . 24 . 21 . 27 . 35 . 5 8 1 16 5 1 . 23 . 5 . 3 . 3 . 1 . . . 1 2 Record 49 | . 1 . 29 . . . . . . . . . . . . . . . . . . 8 . 5 5 . . 1 . . . . . . . . . . . . . Part Schematic 24 | . . . . . . . . . 3 . . . 2 . 2 . 2 . . . 1 . . 4 . . . 6 . 1 . 1 . 2 . . . . . . . Robot Schematic 8 | . . . . . . . . . 3 . 1 . 2 . 1 . . . . . . . . . . . . 1 . . . . . . . . . . . . . Robot Analysis 25 | . 2 . . . . . 4 . 1 . 2 . 4 . . . 1 . . . 2 . . 3 . . . 5 . . . . . . . . . . . 1 . Prototype ID Bank 64 | . 7 . . . 3 . 7 . . . 2 . 4 . 4 . 12 . 21 . . . . 4 . . . . . . . . . . . . . . . . . Open Door 2 | . . . . . . . . . . . . . . . . . . . . . . . 1 . . . . . . . . . . . . . . . . . 1 Level Access Points 11 | . 1 . . . 1 . 1 . 1 . . . 1 . 1 . 1 . 1 . . . . . . . . 1 . . . 1 . . . . . . . . 1 Branch Access Points 10 | . 1 . . . 1 . 2 . 1 . . . 1 . 1 . 1 . 1 . . . . . . . . 1 . . . . . . . . . . . . . Emergency Access Points 2 | . . . . . 2 . . . . . . . . . . . . . . . . . . . . . . . . . . . . . . . . . . . . Machine Index 6 | . . . . . . . 1 . . . . . . . 1 . 1 . 1 . . . . . . . . 1 . . . 1 . . . . . . . . . Terminal Index 7 | . . . . . . . 1 . . . 1 . 1 . 1 . 1 . 1 . . . . . . . . . . . . . . . . 1 . . . . . Fabricator Index 1 | . . . . . . . . . . . 1 . . . . . . . . . . . . . . . . . . . . . . . . . . . . . . Repair Station Index 2 | . . . . . . . 1 . . . 1 . . . . . . . . . . . . . . . . . . . . . . . . . . . . . . Scanalyzer Index 1 | . . . . . . . . . . . . . . . 1 . . . . . . . . . . . . . . . . . . . . . . . . . . Garrison Index 6 | . . . . . . . 1 . 1 . 1 . 1 . 1 . . . . . . . . . . . . 1 . . . . . . . . . . . . . Alert Level 2 | . 2 . . . . . . . . . . . . . . . . . . . . . . . . . . . . . . . . . . . . . . . . Unreport Threat 42 | . 1 . . . . . 4 . 3 . 6 . 6 . 4 . 5 . 5 . . . . . . . . 4 . 3 . . . 1 . . . . . . . Locate Traps 2 | . . . . . 1 . 1 . . . . . . . . . . . . . . . . . . . . . . . . . . . . . . . . . . Investigation Status 1 | . 1 . . . . . . . . . . . . . . . . . . . . . . . . . . . . . . . . . . . . . . . . Recall Investigation 5 | . 1 . . . . . 1 . . . . . 1 . . . . . 1 . 1 . . . . . . . . . . . . . . . . . . . . Recall Extermination 2 | . . . . . . . . . 1 . . . . . . . 1 . . . . . . . . . . . . . . . . . . . . . . . . Recall Reinforcements 4 | . . . . . . . . . 2 . 1 . . . . . 1 . . . . . . . . . . . . . . . . . . . . . . . . Hauler Manifests 12 | . . . . . 2 . 1 . . . 1 . 1 . 2 . 1 . 1 . 1 . . . . . . 1 . 1 . . . . . . . . . . . Registered Components 9 | . 1 . . . 1 . 1 . 1 . 1 . . . 1 . . . 1 . . . . . . 1 . 1 . . . . . . . . . . . . . Registered Prototypes 3 | . 1 . . . . . . . . . 1 . . . 1 . . . . . . . . . . . . . . . . . . . . . . . . . . Zone Layout 4 | . . . . . 1 . 1 . . . . . . . . . . . 2 . . . . . . . . . . . . . . . . . . . . . . EX-Prototype ID Bank 1 | . . . 1 . . . . . . . . . . . . . . . . . . . . . . . . . . . . . . . . . . . . . . Fabricator Hacks 36 | . . . . . . . . . . . 8 . 7 . 2 . 4 . 4 . . . . . . . . 6 . 5 . . . . . . . . . . . Load Schematic 17 | . . . . . . . . . . . 4 . 3 . 1 . 2 . 2 . . . . . . . . 3 . 2 . . . . . . . . . . . Build 19 | . . . . . . . . . . . 4 . 4 . 1 . 2 . 2 . . . . . . . . 3 . 3 . . . . . . . . . . . Repair Station Hacks 8 | . . . . . . . 2 . 2 . 4 . . . . . . . . . . . . . . . . . . . . . . . . . . . . . . Scan Component 4 | . . . . . . . 1 . 1 . 2 . . . . . . . . . . . . . . . . . . . . . . . . . . . . . . Repair 4 | . . . . . . . 1 . 1 . 2 . . . . . . . . . . . . . . . . . . . . . . . . . . . . . . Recycling Unit Hacks 7 | . . . . . . . 1 . 3 . 2 . . . . . . . . . . . . . . . . 1 . . . . . . . . . . . . . Report Inventory 7 | . . . . . . . 1 . 3 . 2 . . . . . . . . . . . . . . . . 1 . . . . . . . . . . . . . Scanalyzer 13 | . . . . . . . 5 . 2 . 4 . . . 2 . . . . . . . . . . . . . . . . . . . . . . . . . . Insert Component 6 | . . . . . . . 2 . 1 . 2 . . . 1 . . . . . . . . . . . . . . . . . . . . . . . . . . Analyze 7 | . . . . . . . 3 . 1 . 2 . . . 1 . . . . . . . . . . . . . . . . . . . . . . . . . . Garrison Access Hacks 37 | . . . . . 1 . 1 . 3 . 4 . 4 . 3 . 4 . 6 . 1 . . . . 1 . 2 . 2 . 1 . 1 . 2 . 1 . . . Unlock Access 15 | . . . . . 1 . 1 . . . 1 . 1 . . . 1 . 1 . . . . . . . . 2 . 2 . 1 . 1 . 2 . 1 . . . Seal Access 18 | . . . . . . . . . 3 . 2 . 2 . 3 . 3 . 3 . 1 . . . . 1 . . . . . . . . . . . . . . . Coupler Status 4 | . . . . . . . . . . . 1 . 1 . . . . . 2 . . . . . . . . . . . . . . . . . . . . . . Unauthorized Hacks 525 | . 16 . . . 25 . 44 . 61 . 50 . 40 . 30 . 28 . 44 . 19 . . . . 24 . 74 . 37 . 7 . 7 . 12 . . . . 7 Terminals 143 | . 7 . . . 10 . 17 . 13 . 12 . 13 . 13 . 10 . 13 . 4 . . . . 2 . 14 . 6 . 2 . 1 . 3 . . . . 3 Track 51 | . 3 . . . 3 . 7 . 6 . 5 . 5 . 5 . 5 . 5 . 1 . . . . 1 . 4 . . . . . . . . . . . . 1 Assimilate 18 | . . . . . 1 . . . . . 2 . 3 . 2 . . . 2 . . . . . . . . 4 . 1 . . . . . 2 . . . . 1 Botnet 44 | . 3 . . . 3 . 4 . 3 . 3 . 4 . 3 . 3 . 4 . 3 . . . . 1 . 3 . 3 . 2 . 1 . 1 . . . . . Detonate 1 | . . . . . . . . . 1 . . . . . . . . . . . . . . . . . . . . . . . . . . . . . . . . Disrupt 16 | . . . . . 2 . 4 . 3 . 1 . . . 1 . 1 . . . . . . . . . . 2 . 1 . . . . . . . . . . 1 Operators 12 | . 1 . . . 1 . 2 . . . 1 . 1 . 2 . 1 . 1 . . . . . . . . 1 . 1 . . . . . . . . . . . Search 1 | . . . . . . . . . . . . . . . . . . . 1 . . . . . . . . . . . . . . . . . . . . . . Fabricators 7 | . . . . . . . . . . . . . 1 . 1 . 1 . . . . . . . . . . 2 . 2 . . . . . . . . . . . Prioritize 3 | . . . . . . . . . . . . . 1 . . . . . . . . . . . . . . 1 . 1 . . . . . . . . . . . Haulers 3 | . . . . . . . . . . . . . . . 1 . 1 . . . . . . . . . . 1 . . . . . . . . . . . . . Download 1 | . . . . . . . . . . . . . . . . . . . . . . . . . . . . . . 1 . . . . . . . . . . . Repair Stations . | . . . . . . . . . . . . . . . . . . . . . . . . . . . . . . . . . . . . . . . . . . Recycling Units 24 | . . . . . . . 3 . 10 . 5 . . . . . . . . . . . . . . . . 6 . . . . . . . . . . . . . Monitor 9 | . . . . . . . 1 . 4 . 2 . . . . . . . . . . . . . . . . 2 . . . . . . . . . . . . . Reject 10 | . . . . . . . 1 . 4 . 3 . . . . . . . . . . . . . . . . 2 . . . . . . . . . . . . . Mask 5 | . . . . . . . 1 . 2 . . . . . . . . . . . . . . . . . . 2 . . . . . . . . . . . . . Scanalyzers . | . . . . . . . . . . . . . . . . . . . . . . . . . . . . . . . . . . . . . . . . . . Garrison Access 24 | . . . . . . . . . . . . . . . . . . . 5 . 3 . . . . 6 . 5 . 3 . . . . . 2 . . . . . Broadcast 4 | . . . . . . . . . . . . . . . . . . . 1 . 1 . . . . 1 . 1 . . . . . . . . . . . . . Decoy 3 | . . . . . . . . . . . . . . . . . . . 1 . . . . . . 1 . 1 . . . . . . . . . . . . . Redirect 2 | . . . . . . . . . . . . . . . . . . . . . . . . . . 1 . 1 . . . . . . . . . . . . . Reprogram 9 | . . . . . . . . . . . . . . . . . . . 2 . 1 . . . . 1 . 1 . 3 . . . . . 1 . . . . . Intercept 2 | . . . . . . . . . . . . . . . . . . . . . . . . . . 1 . 1 . . . . . . . . . . . . . Watchers 4 | . . . . . . . . . . . . . . . . . . . 1 . 1 . . . . 1 . . . . . . . . . 1 . . . . . Data Cores Recovered 7 | . . . . . . . . . 1 . 3 . 1 . . . 1 . . . . . . . . . . . . 1 . . . . . . . . . . . Used 3 | . . . . . . . . . . . 2 . . . . . 1 . . . . . . . . . . . . . . . . . . . . . . . . Hacking Detections 190 | . 6 . . . 5 . 12 . 12 . 28 . 21 . 15 . 12 . 16 . 4 . . . 1 4 . 21 . 12 . 6 . 4 . 6 . . . 1 4 Full Trace Events 16 | . . . . . . . 1 . . . 3 . 3 . 1 . . . 2 . 1 . . . . . . . . 3 . . . 1 . . . . . 1 . Feedback Events 3 | . . . . . . . . . . . . . 1 . . . . . . . . . . . . . . . . 2 . . . . . . . . . . . Corruption 3 | . . . . . . . . . . . . . 1 . . . . . . . . . . . . . . . . 2 . . . . . . . . . . . Feedback Blocked . | . . . . . . . . . . . . . . . . . . . . . . . . . . . . . . . . . . . . . . . . . . Robot Schematics Acquired 8 | . . . . . . . . . 3 . 1 . 2 . 1 . . . . . . . . . . . . 1 . . . . . . . . . . . . . Robots Built 9 | . . . . . . . . . . . 1 . 2 . . . 2 . 2 . . . . . . . . 1 . 1 . . . . . . . . . . . Matter 2202 | . . . . . . . . . . . 252 . 504 . . . 471 . 471 . . . . . . . . 252 . 252 . . . . . . . . . . . Time 754 | . . . . . . . . . . . 67 . 178 . . . 183 . 125 . . . . . . . . 67 . 134 . . . . . . . . . . . Total Robot Build Rating 34 | . . . . . . . . . . . 4 . 8 . . . 7 . 7 . . . . . . . . 4 . 4 . . . . . . . . . . . Part Schematics Acquired 31 | . . . . . . . 2 . 4 . 2 . 2 . 3 . 2 . . . 1 . . 4 . . . 6 . 2 . 1 . 2 . . . . . . . Parts Built 7 | . . . . . . . . . . . 2 . 1 . 1 . . . . . . . . . . . . 2 . 1 . . . . . . . . . . . Matter 1692 | . . . . . . . . . . . 431 . 190 . 285 . . . . . . . . . . . . 468 . 318 . . . . . . . . . . . Time 578 | . . . . . . . . . . . 164 . 31 . 152 . . . . . . . . . . . . 175 . 56 . . . . . . . . . . . Total Part Build Rating 39 | . . . . . . . . . . . 9 . 5 . 5 . . . . . . . . . . . . 14 . 6 . . . . . . . . . . . Parts Repaired 4 | . . . . . . . 1 . 1 . 2 . . . . . . . . . . . . . . . . . . . . . . . . . . . . . . Time 279 | . . . . . . . 70 . 53 . 156 . . . . . . . . . . . . . . . . . . . . . . . . . . . . . . Parts Recycled . | . . . . . . . . . . . . . . . . . . . . . . . . . . . . . . . . . . . . . . . . . . Recycled Matter . | . . . . . . . . . . . . . . . . . . . . . . . . . . . . . . . . . . . . . . . . . . Retrieved Matter . | . . . . . . . . . . . . . . . . . . . . . . . . . . . . . . . . . . . . . . . . . . Retrieved Components . | . . . . . . . . . . . . . . . . . . . . . . . . . . . . . . . . . . . . . . . . . . Parts Scanalyzed 6 | . . . . . . . 2 . 1 . 2 . . . 1 . . . . . . . . . . . . . . . . . . . . . . . . . . Part Schematics Acquired 6 | . . . . . . . 2 . 1 . 2 . . . 1 . . . . . . . . . . . . . . . . . . . . . . . . . . Parts Damaged . | . . . . . . . . . . . . . . . . . . . . . . . . . . . . . . . . . . . . . . . . . . Bothacking | -11 -10 -10 -10 -9 -8 -8 -8 -8 -7 -7 -7 -7 -7 -7 -6 -6 -6 -6 -6 -6 -5 -5 -5 -5 -4 -4 -4 -4 -4 -4 -4 -3 -3 -2 -2 -1 -1 -1 -1 -1 -1 ------------ Run | Scr Mat Min Exi Min Mat Gar Mat Gar Fac Was Fac Gar Fac Gar Fac Was Fac Gar Fac Gar Fac Upp Upp Zhi Pro Fac Was Fac Gar Fac Gar Res Gar Res Gar Acc Gar Acc Gar Acc Com Used RIF Installer 10 | . . . . . . 1 . 1 . . . 1 . 1 . . . 1 . 1 . . . . . . . . 1 . 1 . . . 1 . . . 1 . . Coupler Efficiency 2 | . . . . . . . . . . . . . . . . . . . . . . . . . . . . . . . 1 . . . . . . . 1 . . Robot Detection 1 | . . . . . . . . 1 . . . . . . . . . . . . . . . . . . . . . . . . . . . . . . . . . Patrol Navigation 1 | . . . . . . . . . . . . . . . . . . . . . . . . . . . . . . . . . . . 1 . . . . . . Alert ID Control 1 | . . . . . . . . . . . . . . . . . . . . . . . . . . . . . 1 . . . . . . . . . . . . Program Shield 1 | . . . . . . . . . . . . . . . . . . . . 1 . . . . . . . . . . . . . . . . . . . . . Autooverride 2 | . . . . . . . . . . . . 1 . . . . . 1 . . . . . . . . . . . . . . . . . . . . . . . Autoassimilate 1 | . . . . . . . . . . . . . . 1 . . . . . . . . . . . . . . . . . . . . . . . . . . . Robots Hacked 101 | . . . . . . . . . . . . . 1 3 6 . 6 . 4 8 . 1 2 . 3 3 . 11 17 6 4 3 6 1 2 3 3 . 3 3 2 Non-combat 1 | . . . . . . . . . . . . . . . . . . . . . . . . . . . . . . . . . . . . 1 . . . . . Combat 100 | . . . . . . . . . . . . . 1 3 6 . 6 . 4 8 . 1 2 . 3 3 . 11 17 6 4 3 6 1 2 2 3 . 3 3 2 Autooverrided 61 | . . . . . . . . . . . . . 1 2 2 . 1 . 3 5 . 1 1 . 1 3 . 7 12 2 3 2 4 1 2 2 2 . 1 1 2 Autoassimilated 34 | . . . . . . . . . . . . . . 1 4 . 5 . 1 2 . . 1 . 2 . . 4 3 4 . 1 2 . . . 1 . 1 2 . Robot Hacks Applied 7 | . . . . . . . . . . . . . . . . . . . . 2 . . . . . . . . 2 . 1 . . . . 1 . . 1 . . parse_system 2 | . . . . . . . . . . . . . . . . . . . . 1 . . . . . . . . . . . . . . . 1 . . . . . overwrite_iff 1 | . . . . . . . . . . . . . . . . . . . . 1 . . . . . . . . . . . . . . . . . . . . . formatsys_high 4 | . . . . . . . . . . . . . . . . . . . . . . . . . . . . . 2 . 1 . . . . . . . 1 . . Relay Couplers Released 60 | . . . . . . 7 . 8 . . . 4 . 6 . . . 8 . 9 . . . . . . . 2 4 . 4 . 2 . 4 . . . 2 . . Machine Destruction 60 | . . . . . . 7 . 8 . . . 4 . 6 . . . 8 . 9 . . . . . . . 2 4 . 4 . 2 . 4 . . . 2 . . Attached 9 | . . . . . . 1 . 1 1 . . 1 . . . . . 1 . 1 . . . . . . . . . . . . . 2 . . . . 1 . . Robots Rewired 25 | . . . 3 . . 3 . . . . 1 . 1 . . . . . . . . 2 1 . . 1 . . . . 7 . . . 6 . . . . . . Allies Hacked 3 | . . . . . . . . . . . . . . . . . . . . . . . . . . . . 1 . . 2 . . . . . . . . . . Hacks Repelled . | . . . . . . . . . . . . . . . . . . . . . . . . . . . . . . . . . . . . . . . . . . Allies | -11 -10 -10 -10 -9 -8 -8 -8 -8 -7 -7 -7 -7 -7 -7 -6 -6 -6 -6 -6 -6 -5 -5 -5 -5 -4 -4 -4 -4 -4 -4 -4 -3 -3 -2 -2 -1 -1 -1 -1 -1 -1 -------- Run | Scr Mat Min Exi Min Mat Gar Mat Gar Fac Was Fac Gar Fac Gar Fac Was Fac Gar Fac Gar Fac Upp Upp Zhi Pro Fac Was Fac Gar Fac Gar Res Gar Res Gar Acc Gar Acc Gar Acc Com Total Allies 188 | . . 4 3 . . 4 . . . . 3 . 7 3 8 20 8 . 8 8 . 3 3 . 3 6 . 19 17 13 13 3 6 1 8 5 3 . 3 3 3 Largest Group 21 | . . 4 7 6 . 4 4 2 . . 2 . 4 5 4 21 21 . 2 6 1 3 2 2 3 4 . 3 6 5 5 1 2 1 6 2 1 . 1 1 1 Highest-Rated Group 667 | . . 71 108 77 . 144 144 42 . . 58 . 110 126 110 667 667 . 63 185 26 91 62 59 124 167 . 115 296 198 118 64 116 58 216 95 64 . 69 58 69 Highest-Rated Ally 81 | . . 31 31 21 . 81 81 21 . . 37 . 37 37 37 50 50 . 37 37 26 31 42 30 47 56 . 58 58 58 58 64 64 58 58 51 64 . 69 58 69 Total Orders 69 | . . . . . . 1 . . . . 1 . 11 14 15 . 5 . 2 9 3 . . . . . . 7 . 1 . . . . . . . . . . . STAY 14 | . . . . . . . . . . . . . 2 7 2 . . . 1 1 1 . . . . . . . . . . . . . . . . . . . . GOTO 25 | . . . . . . . . . . . 1 . 4 1 5 . 4 . . 4 1 . . . . . . 4 . 1 . . . . . . . . . . . FOLLOW 24 | . . . . . . . . . . . . . 5 6 3 . 1 . 1 4 1 . . . . . . 3 . . . . . . . . . . . . . GUARD 2 | . . . . . . 1 . . . . . . . . 1 . . . . . . . . . . . . . . . . . . . . . . . . . . AID 4 | . . . . . . . . . . . . . . . 4 . . . . . . . . . . . . . . . . . . . . . . . . . . Ally Attacks 658 | . . . . 20 . 10 58 14 . . 1 . 4 5 3 . 240 . 11 21 . 4 16 . 4 17 . 21 61 24 60 4 9 6 25 1 6 . 4 4 5 Total Damage 16999 | . . . . 254 . 430 1766 426 . . 22 . 112 51 56 . 5163 . 150 633 . 78 322 . 97 893 . 501 2080 828 1145 224 248 135 617 44 223 . 138 151 212 Kills 91 | . . . . 4 . 5 19 7 . . . . . . . . 32 . . 4 . 1 4 . 1 3 . 2 5 2 1 . . . 1 . . . . . . Allies Corrupted 5 | . . . . . . . . . . . . . 1 . . . 1 . . . . . . . . . . 1 . . 1 . 1 . . . . . . . . Allies Melted . | . . . . . . . . . . . . . . . . . . . . . . . . . . . . . . . . . . . . . . . . . . Field Lobotomies 3 | . . . . . . 1 . . . . . . . . . . . . . . . . . . . . . . . . 2 . . . . . . . . . . Intel | -11 -10 -10 -10 -9 -8 -8 -8 -8 -7 -7 -7 -7 -7 -7 -6 -6 -6 -6 -6 -6 -5 -5 -5 -5 -4 -4 -4 -4 -4 -4 -4 -3 -3 -2 -2 -1 -1 -1 -1 -1 -1 ------- Run | Scr Mat Min Exi Min Mat Gar Mat Gar Fac Was Fac Gar Fac Gar Fac Was Fac Gar Fac Gar Fac Upp Upp Zhi Pro Fac Was Fac Gar Fac Gar Res Gar Res Gar Acc Gar Acc Gar Acc Com Robot Analysis Total 25 | . 2 . . . . . 4 . 1 . 2 . 4 . . . 1 . . . 2 . . 3 . . . 5 . . . . . . . . . . . 1 . Derelict Logs Recovered 9 | . . 1 . 2 . . . . . . . . . . . . . . . . . 1 2 . 3 . . . . . . . . . . . . . . . . Drone Launches . | . . . . . . . . . . . . . . . . . . . . . . . . . . . . . . . . . . . . . . . . . . Drone Recoveries . | . . . . . . . . . . . . . . . . . . . . . . . . . . . . . . . . . . . . . . . . . . Exploration | -11 -10 -10 -10 -9 -8 -8 -8 -8 -7 -7 -7 -7 -7 -7 -6 -6 -6 -6 -6 -6 -5 -5 -5 -5 -4 -4 -4 -4 -4 -4 -4 -3 -3 -2 -2 -1 -1 -1 -1 -1 -1 ------------- Run | Scr Mat Min Exi Min Mat Gar Mat Gar Fac Was Fac Gar Fac Gar Fac Was Fac Gar Fac Gar Fac Upp Upp Zhi Pro Fac Was Fac Gar Fac Gar Res Gar Res Gar Acc Gar Acc Gar Acc Com Turns Passed 28517 | 14 485 478 278 82 801 1270 755 678 1079 192 1910 1181 1405 566 1778 120 968 546 1774 828 694 330 403 139 338 502 23 2752 490 671 610 719 303 743 493 813 311 4 304 256 431 Spaces Moved 44167 | 28 785 778 513 181 1285 1088 1303 921 1943 359 3245 646 2902 950 2956 254 2108 813 2480 1183 1306 465 833 155 783 896 64 3881 497 1384 678 1346 399 1157 482 997 117 22 391 503 1090 Core 261 | 28 225 . . . . . . . . . . . . . . . . . . 1 . . . . . . . . . . 7 . . . . . . . . . . Treads . | . . . . . . . . . . . . . . . . . . . . . . . . . . . . . . . . . . . . . . . . . . Legs . | . . . . . . . . . . . . . . . . . . . . . . . . . . . . . . . . . . . . . . . . . . Wheels . | . . . . . . . . . . . . . . . . . . . . . . . . . . . . . . . . . . . . . . . . . . Hover . | . . . . . . . . . . . . . . . . . . . . . . . . . . . . . . . . . . . . . . . . . . Flight 43906 | . 560 778 513 181 1285 1088 1303 921 1943 359 3245 646 2902 950 2956 254 2108 813 2480 1182 1306 465 833 155 783 896 64 3881 497 1384 671 1346 399 1157 482 997 117 22 391 503 1090 Fastest Speed 17 | 50 40 40 40 40 32 32 32 32 32 32 29 29 29 32 26 32 26 32 26 26 26 32 32 32 32 32 26 26 32 26 26 32 26 32 32 17 17 17 17 17 17 Average Speed 32 | 50 42 40 40 40 34 48 32 32 33 32 31 31 31 32 31 32 31 32 31 31 31 32 32 32 32 32 27 31 32 31 32 32 30 32 32 22 17 17 17 17 17 Slowest Speed 105 | 50 50 40 40 40 40 105 34 32 105 32 32 32 32 32 32 32 32 32 32 100 32 32 32 32 32 32 32 32 32 32 100 32 32 32 32 32 17 17 17 24 17 Overloaded Moves 672 | . . . . . . . . . . . 87 22 16 . 9 . 153 . 10 26 7 . . . . . 48 37 . 66 45 . 146 . . . . . . . . Propulsion Burnouts . | . . . . . . . . . . . . . . . . . . . . . . . . . . . . . . . . . . . . . . . . . . Robots Hopped 513 | . 12 20 4 8 10 16 40 . 26 . 52 . 53 . 38 1 20 1 21 . 22 1 . . 2 12 . 47 1 38 14 13 7 5 . 10 . . . 14 5 Cave-ins Triggered 1 | . . . . . . . . . . . . . . . . . 1 . . . . . . . . . . . . . . . . . . . . . . . . Exploration Rate (%) 61 | 3 95 98 91 50 80 76 95 85 57 95 73 67 78 84 72 96 56 83 69 99 36 50 82 60 83 19 73 81 64 37 60 30 64 19 50 27 33 1 62 12 33 Regions Visited 41 Branch Regions 8 Pre-discovered Areas 8 | . . . 1 . . . . . . . . . . . . . . . . . . 1 1 3 2 . . . . . . . . . . . . . . . . Known Exits Taken 14 | . 1 . . . 1 . 1 . . . 1 . 1 . . . 1 . 1 . . . . . 1 . . 1 . 1 . 1 . 1 . 1 . 1 . . . Unknown Exits Taken 9 | 1 . 1 1 1 . . . . . . . . . . . . . . . . 1 1 1 1 . . . . . . . . . . . . . . . 1 . Scrap Searched 13 | . . 3 . 1 . . . . . . . . . . . . . . . . . 2 3 . 4 . . . . . . . . . . . . . . . . Spaces Dug 140 | . . . . . . . . . . . 3 . 2 4 8 . 3 . 4 . . . . . . 4 . 99 . 1 . 4 . . . 2 . . . 2 4 Terrain Destroyed 1059 | . . . . . 11 . 4 . 238 1 37 18 23 4 64 . 31 10 38 14 80 8 . . 10 8 . 220 1 17 24 11 1 4 3 31 . . 69 5 74 Melee 10 | . . . . . . . . . . . . . . 4 . . . . . . . . . . . . . . . . . . . . . . . . . 2 4 Projectile 204 | . . . . . 11 . 4 . 1 1 12 1 4 . 25 . 8 . 14 . . . . . . 4 . 59 1 3 1 11 1 4 3 15 . . 15 3 3 AOE 845 | . . . . . . . . . 237 . 25 17 19 . 39 . 23 10 24 14 80 8 . . 10 4 . 161 . 14 23 . . . . 16 . . 54 . 67 Actions | -11 -10 -10 -10 -9 -8 -8 -8 -8 -7 -7 -7 -7 -7 -7 -6 -6 -6 -6 -6 -6 -5 -5 -5 -5 -4 -4 -4 -4 -4 -4 -4 -3 -3 -2 -2 -1 -1 -1 -1 -1 -1 --------- Run | Scr Mat Min Exi Min Mat Gar Mat Gar Fac Was Fac Gar Fac Gar Fac Was Fac Gar Fac Gar Fac Upp Upp Zhi Pro Fac Was Fac Gar Fac Gar Res Gar Res Gar Acc Gar Acc Gar Acc Com Total 54874 | 27 852 870 581 181 1476 1561 1535 1239 2214 409 3870 1553 3198 1114 3574 291 2260 1031 3322 1542 1487 597 939 227 856 1050 68 5071 710 1513 933 1528 528 1481 785 1485 397 21 597 619 1282 Wait 6830 | . 24 66 58 7 58 163 198 64 166 12 424 811 179 76 436 11 51 74 737 205 143 58 69 50 58 89 1 937 39 90 57 59 47 200 184 354 259 . 141 50 125 Move 43146 | 27 761 739 504 166 1264 1059 1229 919 1891 358 3141 644 2802 948 2884 251 2067 808 2440 1179 1264 462 832 154 778 873 63 3794 492 1313 649 1321 385 1146 480 978 115 21 389 476 1080 Hop 443 | . 11 18 4 6 10 8 33 . 25 . 50 . 46 . 34 1 20 1 17 . 19 1 . . 2 11 . 39 1 31 10 12 5 4 . 8 . . . 12 4 Pick Up 32 | . . . . . . 4 3 1 4 2 5 . . 1 3 . . . . 1 . . . . . . . 2 2 . . . . 2 . . . . . 2 . Fast Attach 210 | . 9 . 2 . 14 8 13 . 15 1 21 1 7 . 19 14 3 1 4 2 4 . 1 6 2 6 2 5 . 3 . 14 3 6 . 17 . . . 7 . Attach 22 | . . . . . . 1 2 1 2 . 1 . . 1 1 . . . . . . . . . . . . 2 . . . . . 4 5 1 . . . 1 . Detach 18 | . . . . . 1 . 4 . 2 . 2 . . . 1 . . . . . . . . 1 . . . . . . . . . 2 4 1 . . . . . Swap 89 | . . . . . 1 1 . . . . 3 . 5 5 2 . 1 . . 8 3 . . . . 7 . 13 3 4 3 1 . 4 2 7 1 . 4 4 7 Drop 203 | . 3 . 3 . 8 9 10 . 16 3 24 . 8 1 22 14 2 1 2 2 7 . 1 5 2 7 2 9 . 3 . 8 . 6 1 16 1 . 1 6 . Fire 1671 | . 34 27 . . 81 131 29 30 66 16 102 34 67 34 90 . 66 34 59 49 41 26 17 10 6 28 . 160 66 35 69 52 27 31 26 53 6 . 21 22 26 Melee 28 | . . . . . . . . . . . . . . 19 . . . . . . . . . . . . . . . . . . . . . . . . . 4 5 Ram 2 | . 1 . . . . . . . . . . . . . . . . . . 1 . . . . . . . . . . . . . . . . . . . . . Kick . | . . . . . . . . . . . . . . . . . . . . . . . . . . . . . . . . . . . . . . . . . . Crush . | . . . . . . . . . . . . . . . . . . . . . . . . . . . . . . . . . . . . . . . . . . Escape Stasis 828 | . . . . . . 128 . 198 5 . 31 30 22 13 18 . . 74 1 59 . . . . . . . 8 58 1 44 . 31 20 43 18 5 . 16 . 5 Rewire 141 | . . . 10 . . 14 . . . . 3 . 12 . 3 . 1 . 8 5 . 3 6 . . 1 . . . . 48 . . . 25 . . . 2 . . Trap . | . . . . . . . . . . . . . . . . . . . . . . . . . . . . . . . . . . . . . . . . . . Miscellaneous 1211 | . 9 20 . 2 39 35 14 26 22 17 63 33 50 16 61 . 49 38 54 31 6 47 13 1 8 28 . 102 49 33 53 61 30 56 15 32 10 . 23 35 30 Route ------- -11/Scrapyard -10/Materials (discovered 4 exits: *Mat x3 / *Min) -10/Mines (discovered 3 exits: *Mat x2 / *Exi) -10/Exiles (discovered 2 exits: [*Min x2]) -9/Mines -8/Materials (discovered 4 exits: *Fac x3 / Gar) -8/Garrison (discovered 3 exits: *Mat x3) -8/Materials (discovered 4 exits: *Fac x3 / Gar) -8/Garrison (discovered 3 exits: *Fac x3) -7/Factory (discovered 6 exits: *Fac x4 / *Low x2) -7/Waste -7/Factory (discovered 6 exits: *Fac x3 / *Low x2 / Gar) -7/Garrison (discovered 3 exits: *Fac x3) -7/Factory (discovered 7 exits: *Fac x4 / *Low x2 / Gar) -7/Garrison (discovered 3 exits: *Fac x3) -6/Factory (discovered 6 exits: *Fac x4 / *Low x2) -6/Waste -6/Factory (discovered 7 exits: *Fac x4 / *Low x2 / Gar) -6/Garrison (discovered 3 exits: *Fac x3) -6/Factory (discovered 7 exits: *Fac x4 / *Low x2 / Gar) -6/Garrison (discovered 3 exits: *Fac x3) -5/Factory (discovered 2 exits: *Upp x2) -5/Upper Caves -5/Upper Caves (discovered 2 exits: *Fac / *Zhi) -5/Zhirov -4/Proximity Caves -4/Factory (discovered 5 exits: *Res x3 / *Upp / Arm) -4/Waste -4/Factory (discovered 8 exits: *Res x4 / Upp x2 / Arm / Gar) -4/Garrison (discovered 2 exits: *Fac x2) -4/Factory (discovered 3 exits: *Upp / Gar / Gar) -4/Garrison (discovered 2 exits: *Res x2) -3/Research (discovered 4 exits: Res x3 / Gar) -3/Garrison (discovered 3 exits: *Res x3) -2/Research (discovered 2 exits: [*Qua] / Gar) -2/Garrison -1/Access (discovered 2 exits: Gar / Gar) -1/Garrison -1/Access -1/Garrison -1/Access -1/Command (discovered 2 exits: *Sur x2) To Epsilon Eridani History --------- Turn | Location | Event 5 | -11/Scrapyard | Discovered new exit (range 15) 15 | -11/Scrapyard | Entered Materials 64 | -10/Materials | Upgraded with Weapon slot (x1) 65 | -10/Materials | Discovered new exit (range 3) 249 | -10/Materials | Identified exit to Mines 249 | -10/Materials | Identified exit to Materials 358 | -10/Materials | Build established: Hacker-Mutant 360 | -10/Materials | Central database locked down 379 | -10/Materials | Reached level 2 500 | -10/Materials | Entered Mines 555 | -10/Mines | Discovered exit to Materials (range 5) 690 | -10/Mines | Received a Rocket Launcher from a helpful Derelict 708 | -10/Mines | Deemed a non-threat by the Exiles lab entrance 708 | -10/Mines | Discovered new exit (range 5) 711 | -10/Mines | Reached level 3 820 | -10/Mines | Assisted by bots powering up and referring to "LRC-V3" 826 | -10/Mines | Learned Materials emergency access door positions 838 | -10/Mines | Received a Mining Laser from a helpful Derelict 903 | -10/Mines | Discovered exit to Materials (range 9) 978 | -10/Mines | Entered Exiles 978 | -10/Exiles | Found Exiles lab destroyed 978 | -10/Exiles | Accompanied by 4 allies 984 | -10/Exiles | Discovered new exit (range 15) 1021 | -10/Exiles | Learned location of Zion (-6) 1035 | -10/Exiles | Discovered new exit (range 14) 1153 | -10/Exiles | Opened EX-Vault 1155 | -10/Exiles | Found Field Lobotomy Kit 1256 | -10/Exiles | Entered Mines 1256 | -9/Mines | Accompanied by 6 allies 1257 | -9/Mines | Assembled infested the area 1262 | -9/Mines | Assisted by a Guerilla fighting off Assembled 1269 | -9/Mines | Learned Materials trap positions 1334 | -9/Mines | Learned Materials interactive machine intel 1335 | -9/Mines | Discovered new exit (range 8) 1338 | -9/Mines | Entered Materials 1339 | -8/Materials | Loaded intel: 12 trap records 1340 | -8/Materials | Reached level 4 1340 | -8/Materials | Upgraded with Utility slot (x1) 1341 | -8/Materials | Loaded intel: 14 interactive machine locations 1353 | -8/Materials | Upgraded with Propulsion slot (x1) 1407 | -8/Materials | Garrison activated, responded to threat 1492 | -8/Materials | Reached level 5 1496 | -8/Materials | Upgraded with Utility slot (x1) 1511 | -8/Materials | Core integrity fell below 50% 1722 | -8/Materials | Identified exit to Factory 1814 | -8/Materials | Reached level 6 1845 | -8/Materials | Upgraded with Utility slot (x1) 1845 | -8/Materials | Upgraded with Weapon slot (x1) 1945 | -8/Materials | Central database locked down 2138 | -8/Materials | Identified exit to Garrison 2139 | -8/Materials | Entered Garrison 2139 | -8/Garrison | Reached level 7 2252 | -8/Garrison | Triggered checkpoint 2358 | -8/Garrison | Triggered checkpoint 2446 | -8/Garrison | Reached level 8 2465 | -8/Garrison | Discovered new exit (range 15) 2478 | -8/Garrison | Installed Relay Interface Framework 2516 | -8/Garrison | Triggered checkpoint 2566 | -8/Garrison | Garrison Relay disabled 2652 | -8/Garrison | Garrison Relay disabled 2692 | -8/Garrison | Discovered new exit (range 12) 2706 | -8/Garrison | Triggered checkpoint 2723 | -8/Garrison | Spotted B-75 Beast 2736 | -8/Garrison | Triggered checkpoint 2756 | -8/Garrison | Reached level 9 2808 | -8/Garrison | Assimilated B-75 Beast with FLK Orb 2823 | -8/Garrison | Destroyed 7 combat bots 2903 | -8/Garrison | Garrison Relay disabled 2950 | -8/Garrison | Triggered checkpoint 2984 | -8/Garrison | Garrison Relay disabled 2984 | -8/Garrison | Reached level 10 2988 | -8/Garrison | Triggered checkpoint 3014 | -8/Garrison | Discovered new exit (range 12) 3048 | -8/Garrison | Triggered checkpoint 3409 | -8/Garrison | Entered Materials 3409 | -8/Materials | Accompanied by 4 allies 3416 | -8/Materials | Upgraded with Weapon slot (x1) 3419 | -8/Materials | Upgraded with Power slot (x1) 3428 | -8/Materials | Reached level 11 3517 | -8/Materials | Upgraded with Utility slot (x1) 3579 | -8/Materials | Upgraded with Utility slot (x1) 3595 | -8/Materials | Reached level 12 3804 | -8/Materials | Build established: Hacker-Sprinter 3880 | -8/Materials | Repaired Broken Force Rifle 3946 | -8/Materials | Central database locked down 4055 | -8/Materials | Reached level 13 4140 | -8/Materials | Identified exit to Garrison 4164 | -8/Materials | Entered Garrison 4164 | -8/Garrison | Accompanied by 2 allies 4236 | -8/Garrison | Triggered checkpoint 4239 | -8/Garrison | Garrison Relay disabled 4292 | -8/Garrison | Triggered checkpoint 4333 | -8/Garrison | Discovered exit to Factory (range 10) 4337 | -8/Garrison | Expanded RIF knowledge: Robot Detection 4346 | -8/Garrison | Triggered checkpoint 4348 | -8/Garrison | Garrison Relay disabled 4404 | -8/Garrison | Triggered checkpoint 4462 | -8/Garrison | Upgraded with Utility slot (x1) 4478 | -8/Garrison | Triggered checkpoint 4503 | -8/Garrison | Triggered checkpoint 4523 | -8/Garrison | Garrison Relay disabled 4532 | -8/Garrison | Triggered checkpoint 4604 | -8/Garrison | Discovered exit to Factory (range 14) 4647 | -8/Garrison | Discovered exit to Factory (range 12) 4660 | -8/Garrison | Triggered checkpoint 4740 | -8/Garrison | Triggered checkpoint 4750 | -8/Garrison | Reached level 14 4803 | -8/Garrison | Garrison Relay disabled 4842 | -8/Garrison | Entered Factory 4950 | -7/Factory | Identified exit to Lower Caves 4959 | -7/Factory | Reached level 15 4963 | -7/Factory | Upgraded with Utility slot (x1) 5242 | -7/Factory | First assault squad dispatched 5336 | -7/Factory | Repaired Broken Particle Charger 5360 | -7/Factory | Discovered new exit (range 14) 5623 | -7/Factory | Identified exit to Factory 5677 | -7/Factory | Reached level 16 5887 | -7/Factory | Destroyed 7 combat bots 5904 | -7/Factory | Core integrity fell below 50% 5921 | -7/Factory | Manually triggered Chute Trap 5921 | -7/Factory | Sucked down chute 5921 | -7/Factory | Entered Waste 5921 | -7/Waste | The area was eerily silent 5953 | -7/Waste | Discovered new exit (range 11) 6113 | -7/Waste | Entered Factory 6234 | -7/Factory | Reached level 17 6461 | -7/Factory | Discovered exit to Lower Caves (range 10) 6513 | -7/Factory | First assault squad dispatched 6522 | -7/Factory | Discovered exit to Factory (range 10) 6717 | -7/Factory | Discovered exit to Factory (range 13) 6803 | -7/Factory | Destroyed 8 combat bots 7010 | -7/Factory | Repaired Broken Imp. System Restoration Module 7082 | -7/Factory | Repaired Broken Imp. Target Analyzer 7177 | -7/Factory | Discovered exit to Lower Caves (range 5) 7404 | -7/Factory | Fabricated I-36 Angel? 7409 | -7/Factory | Fabricated Hvy. EM Shotgun? 7475 | -7/Factory | Fabricated Imp. Core Analyzer (x1) 7625 | -7/Factory | Local fabrication network quarantined 7712 | -7/Factory | Discovered exit to Factory (range 6) 7767 | -7/Factory | Identified exit to Garrison 7784 | -7/Factory | Garrison activated, responded to threat 7950 | -7/Factory | Reached level 18 8011 | -7/Factory | Destroyed 11 combat bots 8023 | -7/Factory | Entered Garrison 8686 | -7/Garrison | Triggered checkpoint 8700 | -7/Garrison | Garrison Relay disabled 8706 | -7/Garrison | Upgraded with Utility slot (x1) 8850 | -7/Garrison | Discovered new exit (range 9) 8862 | -7/Garrison | Triggered checkpoint 8877 | -7/Garrison | Garrison Relay disabled 8988 | -7/Garrison | Triggered checkpoint 9010 | -7/Garrison | Triggered checkpoint 9100 | -7/Garrison | High security lockdown imminent 9120 | -7/Garrison | Triggered checkpoint 9140 | -7/Garrison | Discovered new exit (range 14) 9178 | -7/Garrison | Discovered new exit (range 10) 9180 | -7/Garrison | High security lockdown engaged 9202 | -7/Garrison | Expanded RIF knowledge: Autooverride 9204 | -7/Garrison | Entered Factory 10054 | -7/Factory | First assault squad dispatched 10163 | -7/Factory | Reached level 19 10184 | -7/Factory | Destroyed 8 combat bots 10310 | -7/Factory | Central database locked down 10425 | -7/Factory | Fabricated Imp. Maneuvering Thrusters? 10475 | -7/Factory | Fabricated I-36 Angel (x1) 10501 | -7/Factory | Garrison activated, responded to threat 10541 | -7/Factory | Fabricated I-36 Angel (x1) 10578 | -7/Factory | Identified exit to Garrison 10609 | -7/Factory | Entered Garrison 10609 | -7/Garrison | Accompanied by 4 allies 10611 | -7/Garrison | Expanded RIF knowledge: Autoassimilate 10640 | -7/Garrison | Triggered checkpoint 10682 | -7/Garrison | Discovered exit to Factory (range 8) 10694 | -7/Garrison | Triggered checkpoint 10712 | -7/Garrison | Garrison Relay disabled 10752 | -7/Garrison | Discovered exit to Factory (range 15) 10772 | -7/Garrison | Triggered checkpoint 10808 | -7/Garrison | Triggered checkpoint 10825 | -7/Garrison | Garrison Relay disabled 10942 | -7/Garrison | Triggered checkpoint 10976 | -7/Garrison | Discovered exit to Factory (range 15) 11005 | -7/Garrison | Destroyed 7 combat bots 11107 | -7/Garrison | Triggered checkpoint 11111 | -7/Garrison | Garrison Relay disabled 11175 | -7/Garrison | Entered Factory 11175 | -6/Factory | Accompanied by 4 allies 11274 | -6/Factory | Discovered new exit (range 3) 11362 | -6/Factory | Discovered new exit (range 9) 11442 | -6/Factory | Identified exit to Lower Caves 11446 | -6/Factory | Found Faulty Exp. Targeting Computer 11483 | -6/Factory | Reached level 20 11496 | -6/Factory | Upgraded with Utility slot (x1) 11525 | -6/Factory | First assault squad dispatched 11703 | -6/Factory | Destroyed 10 combat bots 11710 | -6/Factory | Garrison activated, responded to threat 11930 | -6/Factory | Discovered new exit (range 11) 12137 | -6/Factory | Fabricated Exp. Targeting Computer (x1) 12309 | -6/Factory | Spotted B-75 Beast 12380 | -6/Factory | Discovered new exit (range 15) 12439 | -6/Factory | Garrison activated, responded to threat 12474 | -6/Factory | Found Prototype Processor 12474 | -6/Factory | Identified Exp. Terrain Scan Processor 12579 | -6/Factory | Garrison activated, responded to threat 12728 | -6/Factory | Identified exit to Factory 12864 | -6/Factory | Reached level 21 12953 | -6/Factory | Manually triggered Chute Trap 12953 | -6/Factory | Sucked down chute 12953 | -6/Factory | Entered Waste 12954 | -6/Waste | Joined by Warlord forces that had cleared the area 12955 | -6/Waste | 1 allies followed down the chute 13022 | -6/Waste | Found Prototype Slashing Weapon 13022 | -6/Waste | Identified Centrium Greatsword 13042 | -6/Waste | Discovered new exit (range 16) 13054 | -6/Waste | Found Damper Plating 13073 | -6/Waste | Entered Factory 13073 | -6/Factory | Accompanied by 21 allies 13090 | -6/Factory | Discovered exit to Lower Caves (range 14) 13155 | -6/Factory | Garrison activated, responded to threat 13245 | -6/Factory | Crushed by falling debris 13273 | -6/Factory | Garrison activated, responded to threat 13663 | -6/Factory | Spotted B-75 Beast 13678 | -6/Factory | Allies destroyed B-75 Beast 13686 | -6/Factory | Reached level 22 13687 | -6/Factory | Upgraded with Utility slot (x1) 13791 | -6/Factory | Found Prototype Processor 13791 | -6/Factory | Identified Exp. Signal Interpreter 13822 | -6/Factory | Central database locked down 13832 | -6/Factory | High security lockdown imminent 13858 | -6/Factory | Identified exit to Garrison 13912 | -6/Factory | High security lockdown engaged 13936 | -6/Factory | Fabricated I-36 Angel (x1) 13977 | -6/Factory | Garrison activated, responded to threat 13994 | -6/Factory | Fabricated O-24 Administrator? 14036 | -6/Factory | Core integrity fell below 50% 14041 | -6/Factory | Entered Garrison 14051 | -6/Garrison | Destroyed 13 combat bots 14084 | -6/Garrison | Triggered checkpoint 14101 | -6/Garrison | Garrison Relay disabled 14115 | -6/Garrison | Triggered checkpoint 14316 | -6/Garrison | Discovered new exit (range 9) 14319 | -6/Garrison | Identified exit to Factory 14345 | -6/Garrison | Discovered exit to Factory (range 10) 14364 | -6/Garrison | Triggered checkpoint 14377 | -6/Garrison | Discovered exit to Factory (range 12) 14383 | -6/Garrison | Expanded RIF knowledge: Autooverride 14394 | -6/Garrison | Garrison Relay disabled 14440 | -6/Garrison | Garrison Relay disabled 14444 | -6/Garrison | Triggered checkpoint 14492 | -6/Garrison | Triggered checkpoint 14505 | -6/Garrison | Garrison Relay disabled 14556 | -6/Garrison | Triggered checkpoint 14587 | -6/Garrison | Entered Factory 14937 | -6/Factory | First assault squad dispatched 15133 | -6/Factory | Discovered exit to Lower Caves (range 15) 15172 | -6/Factory | Discovered exit to Factory (range 5) 15268 | -6/Factory | Garrison activated, responded to threat 15467 | -6/Factory | Spotted B-75 Beast 16003 | -6/Factory | Reached level 23 16066 | -6/Factory | Central database locked down 16197 | -6/Factory | Fabricated I-36 Angel (x1) 16255 | -6/Factory | Fabricated O-24 Administrator (x1) 16308 | -6/Factory | Identified exit to Garrison 16361 | -6/Factory | Entered Garrison 16361 | -6/Garrison | Accompanied by 2 allies 16377 | -6/Garrison | Phase Generator disabled 16418 | -6/Garrison | Triggered checkpoint 16475 | -6/Garrison | Spotted B-75 Beast 16492 | -6/Garrison | Triggered checkpoint 16510 | -6/Garrison | Garrison Relay disabled 16533 | -6/Garrison | Destroyed B-75 Beast 16612 | -6/Garrison | Discovered exit to Factory (range 10) 16617 | -6/Garrison | Expanded RIF knowledge: Program Shield 16624 | -6/Garrison | Triggered checkpoint 16663 | -6/Garrison | Garrison Relay disabled 16707 | -6/Garrison | Triggered checkpoint 16710 | -6/Garrison | Triggered checkpoint 16717 | -6/Garrison | Discovered exit to Factory (range 13) 16778 | -6/Garrison | Triggered checkpoint 16901 | -6/Garrison | Garrison Relay disabled 16946 | -6/Garrison | Triggered checkpoint 17020 | -6/Garrison | Triggered checkpoint 17020 | -6/Garrison | Triggered checkpoint 17040 | -6/Garrison | Discovered exit to Factory (range 8) 17084 | -6/Garrison | Garrison Relay disabled 17113 | -6/Garrison | Garrison Relay disabled 17126 | -6/Garrison | Spotted B-75 Beast 17126 | -6/Garrison | Spotted B-75 Beast 17133 | -6/Garrison | Triggered checkpoint 17189 | -6/Garrison | Entered Factory 17189 | -5/Factory | Accompanied by 1 ally 17195 | -5/Factory | Discovered new exit (range 12) 17320 | -5/Factory | Garrison activated, responded to threat 17336 | -5/Factory | Spotted B-75 Beast 17489 | -5/Factory | First assault squad dispatched 17628 | -5/Factory | Reached level 24 17632 | -5/Factory | Core integrity fell below 50% 17652 | -5/Factory | Destroyed 7 combat bots 17671 | -5/Factory | Discovered new exit (range 15) 17810 | -5/Factory | High security lockdown imminent 17812 | -5/Factory | Core integrity fell below 20% 17883 | -5/Factory | Entered Upper Caves 17953 | -5/Upper Caves | Learned Factory terminal intel 17999 | -5/Upper Caves | Attracted the attention of an 0b10 checkpoint 18042 | -5/Upper Caves | Attacked by a faux Warlord 18151 | -5/Upper Caves | Discovered new exit (range 10) 18167 | -5/Upper Caves | Attracted the attention of an 0b10 base 18192 | -5/Upper Caves | Learned location of Armory (-4) 18192 | -5/Upper Caves | Learned location of 1 exit from Proximity Caves 18192 | -5/Upper Caves | Learned location of 1 exit from Research 18192 | -5/Upper Caves | Learned Extension emergency access door positions 18192 | -5/Upper Caves | Learned Research stockpile data 18192 | -5/Upper Caves | Learned Armory security intel 18213 | -5/Upper Caves | Entered another Upper Caves area 18213 | -5/Upper Caves | Accompanied by 2 allies 18253 | -5/Upper Caves | Discovered new exit (range 8) 18276 | -5/Upper Caves | Attracted the attention of an 0b10 outpost 18348 | -5/Upper Caves | Destroyed 7 combat bots 18376 | -5/Upper Caves | Learned 12 Factory zone layouts 18391 | -5/Upper Caves | Spotted B-75 Beast 18552 | -5/Upper Caves | Discovered new exit (range 12) 18616 | -5/Upper Caves | Entered Zhirov 18616 | -5/Zhirov | Accompanied by 2 allies 18616 | -5/Zhirov | Discovered new exit (range 3) 18622 | -5/Zhirov | Met Zhirov 18628 | -5/Zhirov | Learned location of Quarantine (-2) 18628 | -5/Zhirov | Learned location of Testing (-3) 18628 | -5/Zhirov | Learned location of Command (-1) 18631 | -5/Zhirov | Zhirov requested help retrieving the SGEMP Prototype 18638 | -5/Zhirov | Found Alien Artifact 18638 | -5/Zhirov | Identified Integrated Reactor 18638 | -5/Zhirov | Installed Integrated Reactor, increased core energy generation (+2%) 18755 | -5/Zhirov | Entered Proximity Caves 18755 | -4/Proximity Caves | Accompanied by 1 ally 18756 | -4/Proximity Caves | Identified exit to Factory 18810 | -4/Proximity Caves | Reached level 25 18859 | -4/Proximity Caves | Learned Research garrison access intel 18909 | -4/Proximity Caves | Learned Research stockpile data 19093 | -4/Proximity Caves | Entered Factory 19093 | -4/Factory | Accompanied by 3 allies 19094 | -4/Factory | Identified exit to Research 19095 | -4/Factory | Identified exit to Upper Caves 19095 | -4/Factory | Identified exit to Armory 19096 | -4/Factory | Loaded intel: 20 terminal locations 19271 | -4/Factory | Discovered exit to Research (range 7) 19299 | -4/Factory | Spotted B-86 Titan 19443 | -4/Factory | Garrison activated, responded to threat 19595 | -4/Factory | Sucked down chute 19595 | -4/Factory | Entered Waste 19610 | -4/Waste | EMP discharged 19610 | -4/Waste | System corruption reached 10% 19611 | -4/Waste | Spotted C-40 Crusher 19611 | -4/Waste | Spotted C-40 Crusher 19613 | -4/Waste | Discovered new exit (range 16) 19613 | -4/Waste | Spotted C-40 Crusher 19618 | -4/Waste | Entered Factory 19656 | -4/Factory | Reached level 26 19658 | -4/Factory | Upgraded with Utility slot (x1) 20727 | -4/Factory | Garrison activated, responded to threat 20751 | -4/Factory | Core integrity fell below 50% 20774 | -4/Factory | Destroyed 7 combat bots 20936 | -4/Factory | Identified exit to Garrison 20989 | -4/Factory | Reached level 27 21118 | -4/Factory | First assault squad dispatched 21457 | -4/Factory | Garrison activated, responded to threat 21499 | -4/Factory | Identified exit to Garrison 21882 | -4/Factory | Spotted B-86 Titan 21901 | -4/Factory | Spotted B-86 Titan 21960 | -4/Factory | Fabricated Adv. Armor Integrity Analyzer? 22018 | -4/Factory | Fabricated Imp. Phase Shifter? 22100 | -4/Factory | Destroyed 7 combat bots 22199 | -4/Factory | Fabricated I-36 Angel? 22257 | -4/Factory | High security lockdown imminent 22337 | -4/Factory | High security lockdown engaged 22342 | -4/Factory | Garrison activated, responded to threat 22370 | -4/Factory | Entered Garrison 22406 | -4/Garrison | Garrison Relay disabled 22421 | -4/Garrison | Spotted B-86 Titan 22440 | -4/Garrison | Triggered checkpoint 22490 | -4/Garrison | Destroyed B-86 Titan 22514 | -4/Garrison | Triggered checkpoint 22538 | -4/Garrison | Triggered checkpoint 22544 | -4/Garrison | Garrison Relay disabled 22544 | -4/Garrison | Reached level 28 22580 | -4/Garrison | Triggered checkpoint 22580 | -4/Garrison | High security lockdown imminent 22595 | -4/Garrison | Discovered new exit (range 10) 22626 | -4/Garrison | Triggered checkpoint 22638 | -4/Garrison | Triggered checkpoint 22640 | -4/Garrison | Triggered checkpoint 22660 | -4/Garrison | High security lockdown engaged 22674 | -4/Garrison | Destroyed 7 combat bots 22688 | -4/Garrison | Triggered checkpoint 22790 | -4/Garrison | Discovered new exit (range 10) 22797 | -4/Garrison | Destroyed 15 combat bots 22830 | -4/Garrison | Expanded RIF knowledge: Alert ID Control 22847 | -4/Garrison | Build established: Bothacker-Sprinter 22860 | -4/Garrison | Entered Factory 22878 | -4/Factory | Destroyed 9 combat bots 22895 | -4/Factory | Discovered exit to Upper Caves (range 9) 23068 | -4/Factory | Identified exit to Garrison 23131 | -4/Factory | Garrison activated, responded to threat 23272 | -4/Factory | Spotted B-86 Titan 23353 | -4/Factory | High security lockdown imminent 23373 | -4/Factory | Identified exit to Garrison 23433 | -4/Factory | Fabricated Enh. Force Rifle? 23433 | -4/Factory | High security lockdown engaged 23452 | -4/Factory | Fabricated I-36 Angel? 23475 | -4/Factory | Garrison activated, responded to threat 23499 | -4/Factory | Garrison activated, responded to threat 23531 | -4/Factory | Entered Garrison 23544 | -4/Garrison | Triggered checkpoint 23547 | -4/Garrison | Destroyed 12 combat bots 23550 | -4/Garrison | Garrison Relay disabled 23584 | -4/Garrison | Triggered checkpoint 23584 | -4/Garrison | Spotted B-86 Titan 23593 | -4/Garrison | Triggered checkpoint 23636 | -4/Garrison | Destroyed B-86 Titan 23726 | -4/Garrison | Discovered exit to Research (range 14) 23732 | -4/Garrison | Expanded RIF knowledge: Coupler Efficiency 23744 | -4/Garrison | Garrison Relay disabled 23750 | -4/Garrison | Triggered checkpoint 23772 | -4/Garrison | Triggered checkpoint 23802 | -4/Garrison | Triggered checkpoint 23870 | -4/Garrison | Reached level 29 23884 | -4/Garrison | High security lockdown imminent 23964 | -4/Garrison | High security lockdown engaged 23975 | -4/Garrison | Core integrity fell below 20% 23987 | -4/Garrison | Assimilated L-61 Swordsman with FLK Orb 23989 | -4/Garrison | Assimilated L-61 Swordsman with FLK Orb 24002 | -4/Garrison | Destroyed 10 combat bots 24082 | -4/Garrison | Triggered checkpoint 24122 | -4/Garrison | Triggered checkpoint 24128 | -4/Garrison | Destroyed 9 combat bots 24134 | -4/Garrison | Triggered checkpoint 24138 | -4/Garrison | Discovered exit to Research (range 9) 24141 | -4/Garrison | Entered Research 24142 | -3/Research | Identified exit to Research 24144 | -3/Research | Loaded intel: 4 garrison access locations 24435 | -3/Research | First assault squad dispatched 24575 | -3/Research | Destroyed 9 combat bots 24655 | -3/Research | Reached level 30 24660 | -3/Research | Garrison activated, responded to threat 24680 | -3/Research | Found Prototype Device 24680 | -3/Research | Identified Imp. Particle Accelerator 24722 | -3/Research | Identified exit to Garrison 24754 | -3/Research | Spotted B-86 Titan 24800 | -3/Research | High security lockdown imminent 24860 | -3/Research | Entered Garrison 24868 | -3/Garrison | Triggered checkpoint 24887 | -3/Garrison | Garrison Relay disabled 24900 | -3/Garrison | Spotted B-86 Titan 24903 | -3/Garrison | Triggered checkpoint 24906 | -3/Garrison | Triggered checkpoint 24927 | -3/Garrison | High security lockdown imminent 24947 | -3/Garrison | Discovered exit to Research (range 14) 24958 | -3/Garrison | Destroyed 8 combat bots 24999 | -3/Garrison | Destroyed B-86 Titan 25007 | -3/Garrison | High security lockdown engaged 25043 | -3/Garrison | Destroyed 7 combat bots 25073 | -3/Garrison | Spotted Executioner 25123 | -3/Garrison | Core integrity fell below 50% 25127 | -3/Garrison | Discovered exit to Research (range 15) 25129 | -3/Garrison | Spotted Investigator 25131 | -3/Garrison | Spotted B-86 Titan 25131 | -3/Garrison | Spotted B-86 Titan 25142 | -3/Garrison | Triggered checkpoint 25158 | -3/Garrison | Discovered exit to Research (range 9) 25163 | -3/Garrison | Entered Research 25164 | -2/Research | Core integrity fell below 50% 25165 | -2/Research | Reached level 31 25166 | -2/Research | Upgraded with Utility slot (x1) 25253 | -2/Research | Core integrity fell below 20% 25279 | -2/Research | Discovered new exit (range 15) 25307 | -2/Research | Found Prototype Device 25307 | -2/Research | Identified Exp. Cloaking Device 25440 | -2/Research | First assault squad dispatched 25858 | -2/Research | High security lockdown imminent 25900 | -2/Research | Identified exit to Garrison 25906 | -2/Research | Entered Garrison 26072 | -2/Garrison | Triggered checkpoint 26084 | -2/Garrison | Triggered checkpoint 26087 | -2/Garrison | Reached level 32 26108 | -2/Garrison | Garrison Relay disabled 26255 | -2/Garrison | Garrison Relay disabled 26270 | -2/Garrison | Triggered checkpoint 26321 | -2/Garrison | Discovered new exit (range 9) 26326 | -2/Garrison | Expanded RIF knowledge: Patrol Navigation 26385 | -2/Garrison | High security lockdown imminent 26385 | -2/Garrison | Triggered checkpoint 26399 | -2/Garrison | Entered Access 26401 | -1/Access | Reached level 33 26435 | -1/Access | Found Prototype Slashing Weapon 26435 | -1/Access | Identified Vibroblade 26437 | -1/Access | Found Vibroblade 26575 | -1/Access | Build established: Hacker-Sprinter 26893 | -1/Access | Reached level 34 26927 | -1/Access | Identified exit to Garrison 26934 | -1/Access | First assault squad dispatched 26943 | -1/Access | Spotted B-99 Colossus 27193 | -1/Access | Destroyed 8 combat bots 27195 | -1/Access | High security lockdown imminent 27210 | -1/Access | Identified exit to Garrison 27212 | -1/Access | Entered Garrison 27485 | -1/Garrison | Reached level 35 27491 | -1/Garrison | High security lockdown imminent 27502 | -1/Garrison | Spotted B-99 Colossus 27502 | -1/Garrison | Triggered checkpoint 27505 | -1/Garrison | Triggered checkpoint 27516 | -1/Garrison | Discovered new exit (range 10) 27523 | -1/Garrison | Entered Access 27526 | -1/Access | Maximum security lockdown engaged 27526 | -1/Access | Identified exit to Garrison 27527 | -1/Access | Entered Garrison 27636 | -1/Garrison | Triggered checkpoint 27643 | -1/Garrison | Phase Generator disabled 27684 | -1/Garrison | Garrison Relay disabled 27751 | -1/Garrison | Triggered checkpoint 27787 | -1/Garrison | High security lockdown imminent 27791 | -1/Garrison | Spotted B-99 Colossus 27827 | -1/Garrison | Discovered new exit (range 12) 27830 | -1/Garrison | Expanded RIF knowledge: Coupler Efficiency 27831 | -1/Garrison | Entered Access 27834 | -1/Access | Maximum security lockdown engaged 27968 | -1/Access | Spotted B-99 Colossus 28037 | -1/Access | Discovered new exit (range 8) 28067 | -1/Access | Reached level 36 28080 | -1/Access | Spotted Striker 28080 | -1/Access | Spotted Striker 28080 | -1/Access | Spotted Executioner 28082 | -1/Access | Spotted B-99 Colossus 28082 | -1/Access | Spotted B-99 Colossus 28087 | -1/Access | Entered Command 28229 | -1/Command | Phase Generator disabled 28304 | -1/Command | Spotted M Guard 28304 | -1/Command | Spotted M Guard 28316 | -1/Command | Spotted Combat Programmer 28316 | -1/Command | Spotted Combat Programmer 28334 | -1/Command | Destroyed Combat Programmer 28337 | -1/Command | First assault squad dispatched 28343 | -1/Command | Destroyed Combat Programmer 28404 | -1/Command | Met MAIN.C 28476 | -1/Command | Identified exit to Surface 28509 | -1/Command | Spotted B-99 Colossus 28509 | -1/Command | Spotted Striker 28509 | -1/Command | Spotted Executioner 28509 | -1/Command | Spotted Executioner 28518 | *** | Escaped! Last Messages --------------- Found 2 level access points to Surface: (209,118) (83,62) Map updated. 28483_ IN 28492_ Slug penetrates Wall. 28507_ System corrupted: Matter fused (-5). 28510_ Triggered Stasis Trap. 28510_ A bubble of rippling energy engulfs the area. 28510_ Field strength at 89. 28510_ Access Shell breached. 28512_ Field strength at 78. 28513_ Field strength at 55. 28514_ Field strength at 44. 28515_ Field strength at 33. 28516_ Field strength at 10. 28517_ Slug penetrates Access Shell. 28517_ Stasis field depleted. [Achievement: One Last FU] Map ----- +----------------------------------------------------+ | ?????# # ?????????????????? | | ?????# + ?????????????????? | | ?????# # ##### ?????????????????? | | ?????# # #??????h ?????????????????? | | ###### # #??????Y? ??????????????????? | | "" # # #?????????? ??????????????????? | | # # #???????????? ##"???????????????????? | | # # #???????????????????????????????????? | | " # # #???????????????????????????????????? | | " ####### #???????????????????????????????????? | | " + #???????????????????????????????????? | | " # #???????????????????????????????????? | | # #???????? ?????????????????????? | | + #???????? ????????????????????? | | ## #???????? ##???????????????????? | | ## #???????? #???????????????????? | | ## #???????? ##???????????????????? | | ####### g #???????? #???????????????????? | | ###### #????#### #????????????????????? | | / #????# ??????????????????????? | | #??? ######??# ???????????????????????? | | / # #??# ?????????????????????????? | | ## # #### """"""?????????????????????? | | ??# g # =##"# " "?????????????????????? | | ??# g # # #" " "" "?????????????????????? | | ??# #### |h###h " "@ "?????????????????????? | | ??# #####/####?# g " "?????????????????????? | | #?# g #??# "p """ #?????????????????? | | ??# #??# g #?????????????????? | | ### #??# #?????????????????? | | #??# pK #?????????????????? | | #??##############?????????????????? | | ###?????????????????????????????????? | | #?############??????????????????????? | | # #??????????????????????? | | # #??????????????????????? | | + #??????????????????????? | | ############## !]] #??????????????????????? | | #??????? !]] #??????????????????????? | | #???????? ]]] #??????????????????????? | | #???????? #??????????????????????? | | ""#????????? #??????????????????????? | | " ""#????????? #??????????????????????? | | " ""#?????????? #??????????????????????? | | T#?????????? ???????????????????????? | | ""#??????????? ???????????????????????? | | ""#???????????#######????????????????????????? | | ""#??????????????????????????????????????????? | | #??????????????????????????????????????????? | | !* #??????????????????????????????????????????? | +----------------------------------------------------+ Best States ------------- Heat Dissipation 73 Coolant Potential 100 Energy Generation 66 Energy Capacity 710 Matter Stores 300 Matter Capacity 300 Sight Range 16 Terrain Scan Density 10 Jamming Range 16 Propulsion Shielding 66 Thermal Conversion 90 Weapon Cycling 25 Phase Shifting 15 Evasion (%) 95 Targeting Accuracy 12 Target Analysis 8 Core Analysis 10 Armor Integrity Analysis 66 Energy Filtering 50 Particle Charging 40 Offensive Hacking 20 Defensive Hacking 26 Item Schematics ----------------- Hvy. EM Shotgun | -8/Materials | Scanalyzed Force Rifle | -8/Materials | Scanalyzed Cld. VTOL Module | -7/Factory | Scanalyzed Imp. Core Analyzer | -7/Factory | Hacked Cld. Ion Engine | -7/Factory | Hacked Imp. Maneuvering Thrusters | -7/Factory | Hacked Imp. System Restoration Module | -7/Factory | Scanalyzed Imp. Target Analyzer | -7/Factory | Scanalyzed Tesla Rifle | -7/Factory | Hacked Lightning Gun | -7/Factory | Hacked Exp. Targeting Computer | -6/Factory | Scanalyzed Antimatter Reactor | -6/Factory | Hacked Imp. Transmission Jammer | -6/Factory | Hacked Imp. Lightning Gun | -6/Factory | Hacked Imp. Armor Integrity Analyzer | -6/Factory | Hacked Adv. Coolant Injector | -5/Factory | Hacked Assault Drone Bay | -5/Zhirov | Free Exp. Heat Sink | -5/Zhirov | Free Exp. Optical Array | -5/Zhirov | Free Imp. Arc Thrower | -5/Zhirov | Free Cld. Nuclear Pulse Thruster | -4/Factory | Hacked Adv. Target Analyzer | -4/Factory | Hacked Adv. Armor Integrity Analyzer | -4/Factory | Hacked Imp. Phase Shifter | -4/Factory | Hacked Adv. Hacking Suite | -4/Factory | Hacked Adv. System Shield | -4/Factory | Hacked Enh. Force Rifle | -4/Factory | Hacked Adv. Phase Shifter | -4/Factory | Downloaded Adv. Reaction Control System | -3/Research | Hacked Enh. Nova Cannon | -2/Research | Hacked Enh. Quantum Rifle | -2/Research | Hacked Robot Schematics ------------------ G-47 Trooper | -7/Factory | Hacked O-24 Administrator | -7/Factory | Hacked I-36 Angel | -7/Factory | Hacked L-41 Fighter | -7/Factory | Hacked Y-54 Guardian | -7/Factory | Hacked B-36 Bruiser | -7/Factory | Hacked H-55 Commando | -6/Factory | Hacked E-15 Imp | -4/Factory | Hacked Fabricated ------------ I-36 Angel | x1 | -7/Factory Hvy. EM Shotgun | x1 | -7/Factory Imp. Core Analyzer | x1 | -7/Factory Imp. Maneuvering Thrusters | x1 | -7/Factory I-36 Angel | x1 | -7/Factory I-36 Angel | x1 | -7/Factory Exp. Targeting Computer | x1 | -6/Factory I-36 Angel | x1 | -6/Factory O-24 Administrator | x1 | -6/Factory I-36 Angel | x1 | -6/Factory O-24 Administrator | x1 | -6/Factory Adv. Armor Integrity Analyzer | x1 | -4/Factory Imp. Phase Shifter | x1 | -4/Factory I-36 Angel | x1 | -4/Factory Enh. Force Rifle | x1 | -4/Factory I-36 Angel | x1 | -4/Factory Alien Tech Used ----------------- Integrated Reactor Achievements -------------- Assimilation Complete Below Gunslinger Meet Your Maker No Signal One Last FU Pwned Challenges ------------ None RPGLIKE | -11 -10 -10 -10 -9 -8 -8 -8 -8 -7 -7 -7 -7 -7 -7 -6 -6 -6 -6 -6 -6 -5 -5 -5 -5 -4 -4 -4 -4 -4 -4 -4 -3 -3 -2 -2 -1 -1 -1 -1 -1 -1 --------- Run | Scr Mat Min Exi Min Mat Gar Mat Gar Fac Was Fac Gar Fac Gar Fac Was Fac Gar Fac Gar Fac Upp Upp Zhi Pro Fac Was Fac Gar Fac Gar Res Gar Res Gar Acc Gar Acc Gar Acc Com Levels Raised 35 | . 1 1 . . 3 4 3 1 2 . 2 . 1 . 2 . 1 . 1 . 1 . . . 1 . . 2 1 . 1 1 . 1 1 2 1 . . 1 . XP Earned 56742 | 3000 1504 2050 200 500 4725 6008 3286 1344 4072 67 1879 737 808 388 2464 32 1958 480 551 382 1261 255 339 105 802 1233 67 2657 955 601 580 1518 575 1891 1042 3382 447 118 614 656 1209 XP Spent 52640 | . 4450 1500 . . 4250 2820 4700 2640 5100 . . 2600 . . 2900 . 3200 . 1700 . . . . . . . . 4500 2750 . 480 . . 3800 . 3950 . . 1300 . . Upgrades 66 | . 12 2 . . 7 7 4 5 5 . . 1 . . 1 . 1 . 2 . . . . . . . . 2 2 . 8 . . 1 . 5 . . 1 . . Power Slot 1 | . . . . . . . 1 . . . . . . . . . . . . . . . . . . . . . . . . . . . . . . . . . . Propulsion Slot 1 | . . . . . 1 . . . . . . . . . . . . . . . . . . . . . . . . . . . . . . . . . . . . Utility Slot 12 | . . . . . 3 . 2 1 1 . . 1 . . 1 . 1 . . . . . . . . . . 1 . . . . . 1 . . . . . . . Weapon Slot 3 | . 1 . . . 1 . 1 . . . . . . . . . . . . . . . . . . . . . . . . . . . . . . . . . . Core Integrity 8 | . . . . . . . . . . . . . . . . . . . . . . . . . . . . . . . 8 . . . . . . . . . . Heat Dissipation 8 | . 1 . . . . 3 . 4 . . . . . . . . . . . . . . . . . . . . . . . . . . . . . . . . . Energy Generation 3 | . . . . . . . . . . . . . . . . . . . . . . . . . . . . . . . . . . . . 3 . . . . . Mass Support 13 | . 2 . . . 1 1 . . 3 . . . . . . . . . 2 . . . . . . . . 1 . . . . . . . 2 . . 1 . . Inventory Capacity 6 | . . . . . 1 2 . . 1 . . . . . . . . . . . . . . . . . . . 2 . . . . . . . . . . . . Ranged Accuracy 6 | . 3 2 . . . 1 . . . . . . . . . . . . . . . . . . . . . . . . . . . . . . . . . . . Hack Attack % 2 | . 2 . . . . . . . . . . . . . . . . . . . . . . . . . . . . . . . . . . . . . . . . Hack Defense % 3 | . 3 . . . . . . . . . . . . . . . . . . . . . . . . . . . . . . . . . . . . . . . . Protomatter Created 17955 | . 76 174 . . 336 297 286 262 282 124 998 576 966 490 674 . 773 545 874 803 237 483 204 96 221 317 . 1188 1317 735 598 682 514 669 345 774 161 . 161 441 276 Integrity Restored 24012 | . 175 406 . 33 808 680 242 435 435 369 1244 593 856 255 1222 . 956 770 1066 504 120 1004 190 11 129 540 . 2105 944 647 1088 1279 671 1226 274 612 206 . 462 771 684 Core 18567 | . 130 353 . 33 737 573 183 341 354 308 872 502 630 194 926 . 740 599 811 359 120 735 141 . 99 418 . 1561 709 425 1016 803 661 907 204 434 136 . 363 540 650 Parts 5445 | . 45 53 . . 71 107 59 94 81 61 372 91 226 61 296 . 216 171 255 145 . 269 49 11 30 122 . 544 235 222 72 476 10 319 70 178 70 . 99 231 34 Protomatter Decayed 10644 | . 16 37 . 21 64 79 580 270 45 . 322 163 541 389 443 194 861 244 473 540 61 49 384 . 174 136 . 651 990 620 471 175 289 352 187 482 . . 84 211 46 Game ------ Seed DimensionalTargetingMaul Manual? 0 Play Time 08:14:30 Cumulative 144.7 hours Start 2020.01.12 @ 18:08:30 End 2020.01.15 @ 02:31:29 Sessions 7 Manual Loads 0 Difficulty Rogue Special Mode Winter2019/RPGLIKE Game No. 141 Rogue 141 Adventurer 0 Explorer 0 Win Type 0 Total 12 Types 11/0/0/1/0/0/0 Lore% 72 Gallery% 72 Achievement% 64 Wizard Run 0 Options --------- ASCII 0 Keyboard 0 Movement Numpad Keybinds 0 Fullscreen 2 Font 18/SmallcapsGlow Map View 76x50 Tactical HUD 1 Map Filters NONE Filters NONE Steam 1 RUN: f30e118d-b654-4b73-b62c-6e38a797f066